Workbook

Sheet Pivot (hidden)
D2: =B4&" comparison " & CHAR(10) &" 2011 vs. 2012" -> Person 4 comparison 2011 vs. 2012
A4: Sales Person - Name | B4: Person 4 | F4: 4 | J4: Customer Type | K4: Customer 1 | N4: Customer Type | O4: Customer 1
A6: Row Labels | B6: Sum of 2011 | C6: Sum of 2012 | E6: =INDEX(Controls!$E$3:$E$14,Pivot!F4) -> Person 4 | F6: 2011 | G6: 2012 | J6: Product | K6: Sum of 2011 | N6: Product | O6: Sum of 2012
A7: Product 1 | B7: 8478 | C7: 8806 | E7: ="Prod "& CHAR(10) & 1 -> Prod 1 | F7: 8478 | G7: 8806 | J7: Product 4 | K7: 0.385541844 | N7: Product 9 | O7: 0.3781368926
A8: Product 2 | B8: 8346 | C8: 8368 | E8: ="Prod "& CHAR(10) & 2 -> Prod 2 | F8: 8346 | G8: 8368 | J8: Product 9 | K8: 0.3587325538 | N8: Product 4 | O8: 0.3682367216
A9: Product 3 | B9: 8370 | C9: 8100 | E9: ="Prod "& CHAR(10) & 3 -> Prod 3 | F9: 8370 | G9: 8100 | J9: Product 5 | K9: 0.2557256022 | N9: Product 10 | O9: 0.2536263857
A10: Product 4 | B10: 8783 | C10: 8623 | E10: ="Prod "& CHAR(10) & 4 -> Prod 4 | F10: 8783 | G10: 8623 | J10: Grand Total | K10: 1 | N10: Grand Total | O10: 1
A11: Product 5 | B11: 13716 | C11: 12544 | E11: ="Prod "& CHAR(10) & 5 -> Prod 5 | F11: 13716 | G11: 12544
A12: Product 6 | B12: 8782 | C12: 8763 | E12: ="Prod "& CHAR(10) & 6 -> Prod 6 | F12: 8782 | G12: 8763
A13: Product 7 | B13: 8120 | C13: 8470 | E13: ="Prod "& CHAR(10) & 7 -> Prod 7 | F13: 8120 | G13: 8470
A14: Product 8 | B14: 8413 | C14: 8572 | E14: ="Prod "& CHAR(10) & 8 -> Prod 8 | F14: 8413 | G14: 8572
A15: Product 9 | B15: 9699 | C15: 9256 | E15: ="Prod "& CHAR(10) & 9 -> Prod 9 | F15: 9699 | G15: 9256 | J15: Customer Type | K15: Customer 1
A16: Product 10 | B16: 13200 | C16: 13429 | E16: ="Prod "& CHAR(10) & 10 -> Prod 10 | F16: 13200 | G16: 13429
A17: Product 11 | B17: 8860 | C17: 8996 | E17: ="Prod "& CHAR(10) & 11 -> Prod 11 | F17: 8860 | G17: 8996 | J17: Product | K17: Sum of 2011 | L17: Sum of 2012
A18: Product 12 | B18: 8344 | C18: 8579 | E18: ="Prod "& CHAR(10) & 12 -> Prod 12 | F18: 8344 | G18: 8579 | J18: Product 1 | K18: 8214 | L18: 8141
A19: Grand Total | B19: 113111 | C19: 112506 | F19: =SUM(F7:F18) -> 113111 | G19: =SUM(G7:G18) -> 112506 | J19: Product 2 | K19: 8174 | L19: 8189
G20: =G19/F19*100 -> 99.46512718 | J20: Product 3 | K20: 8451 | L20: 9106
E21: =Salesrep&" Index of " &TEXT(G20,"#,##")&CHAR(10)& " 2012 over 2011" -> Person 4 Index of 99 2012 over 2011 | J21: Product 4 | K21: 14309 | L21: 13353
J22: Product 5 | K22: 9491 | L22: 8599
J23: Product 6 | K23: 8376 | L23: 8332
J24: Product 7 | K24: 8320 | L24: 7733
J25: Product 8 | K25: 8584 | L25: 8628
J26: Product 9 | K26: 13314 | L26: 13712
J27: Product 10 | K27: 9035 | L27: 9197
J28: Product 11 | K28: 8076 | L28: 8554
J29: Product 12 | K29: 7807 | L29: 8434
J30: Grand Total | K30: 112151 | L30: 111978

Sheet Intro

Sheet Data
E1: Sales
A2: Region | B2: Product | C2: Customer Type | D2: Sales Person - Name | E2: 2011-01-01 | F2: 2011-02-01 | G2: 2011-03-01 | H2: 2011-04-01 | I2: 2011-05-01 | J2: 2011-06-01 | K2: 2011-07-01 | L2: 2011-08-01 | M2: 2011-09-01 | N2: 2011-10-01 | O2: 2011-11-01 | P2: 2011-12-01 | Q2: 2012-01-01 | R2: 2012-02-01 | S2: 2012-03-01 | T2: 2012-04-01 | U2: 2012-05-01 | V2: 2012-06-01 | W2: 2012-07-01 | X2: 2012-08-01 | Y2: 2012-09-01 | Z2: 2012-10-01 | AA2: 2012-11-01 | AB2: 2012-12-01 | AC2: 2011 | AD2: 2012
A3: Region 1 | B3: Product 1 | C3: Customer 1 | D3: Person 1 | E3: 717 | F3: 641 | G3: 654 | H3: 752 | I3: 595 | J3: 769 | K3: 793 | L3: 710 | M3: 564 | N3: 677 | O3: 619 | P3: 723 | Q3: 639 | R3: 757 | S3: 746 | T3: 758 | U3: 562 | V3: 563 | W3: 782 | X3: 559 | Y3: 640 | Z3: 669 | AA3: 774 | AB3: 692 | AC3: =SUM(E3:P3) -> 8214 | AD3: =SUM(Q3:AB3) -> 8141
A4: Region 1 | B4: Product 1 | C4: Customer 2 | D4: Person 2 | E4: 1400 | F4: 1220 | G4: 1114 | H4: 899 | I4: 1351 | J4: 835 | K4: 873 | L4: 909 | M4: 888 | N4: 1278 | O4: 1350 | P4: 1348 | Q4: 931 | R4: 1298 | S4: 1164 | T4: 800 | U4: 903 | V4: 958 | W4: 836 | X4: 909 | Y4: 853 | Z4: 918 | AA4: 1223 | AB4: 886 | AC4: =SUM(E4:P4) -> 13465 | AD4: =SUM(Q4:AB4) -> 11679
A5: Region 1 | B5: Product 1 | C5: Customer 3 | D5: Person 3 | E5: 696 | F5: 643 | G5: 644 | H5: 596 | I5: 645 | J5: 649 | K5: 612 | L5: 675 | M5: 794 | N5: 591 | O5: 709 | P5: 561 | Q5: 733 | R5: 771 | S5: 792 | T5: 577 | U5: 586 | V5: 727 | W5: 678 | X5: 753 | Y5: 652 | Z5: 689 | AA5: 767 | AB5: 643 | AC5: 7815 | AD5: 8368
A6: Region 1 | B6: Product 1 | C6: Customer 4 | D6: Person 4 | E6: 732 | F6: 628 | G6: 628 | H6: 667 | I6: 819 | J6: 640 | K6: 850 | L6: 755 | M6: 612 | N6: 644 | O6: 622 | P6: 881 | Q6: 854 | R6: 766 | S6: 713 | T6: 784 | U6: 667 | V6: 711 | W6: 733 | X6: 677 | Y6: 637 | Z6: 815 | AA6: 756 | AB6: 693 | AC6: 8478 | AD6: 8806
A7: Region 1 | B7: Product 1 | C7: Customer 5 | D7: Person 5 | E7: 607 | F7: 602 | G7: 636 | H7: 869 | I7: 847 | J7: 806 | K7: 895 | L7: 835 | M7: 843 | N7: 799 | O7: 834 | P7: 785 | Q7: 744 | R7: 858 | S7: 799 | T7: 677 | U7: 867 | V7: 605 | W7: 828 | X7: 620 | Y7: 655 | Z7: 704 | AA7: 784 | AB7: 635 | AC7: 9358 | AD7: 8776
A8: Region 1 | B8: Product 1 | C8: Customer 6 | D8: Person 6 | E8: 800 | F8: 607 | G8: 737 | H8: 621 | I8: 660 | J8: 733 | K8: 743 | L8: 666 | M8: 630 | N8: 644 | O8: 617 | P8: 695 | Q8: 653 | R8: 648 | S8: 788 | T8: 731 | U8: 710 | V8: 745 | W8: 788 | X8: 756 | Y8: 627 | Z8: 669 | AA8: 731 | AB8: 650 | AC8: 8153 | AD8: 8496
A9: Region 1 | B9: Product 1 | C9: Customer 7 | D9: Person 7 | E9: 1064 | F9: 863 | G9: 1316 | H9: 1141 | I9: 933 | J9: 872 | K9: 1185 | L9: 1358 | M9: 1173 | N9: 1343 | O9: 1164 | P9: 1275 | Q9: 1364 | R9: 828 | S9: 1299 | T9: 863 | U9: 910 | V9: 1146 | W9: 915 | X9: 941 | Y9: 1093 | Z9: 1224 | AA9: 938 | AB9: 946 | AC9: 13687 | AD9: 12467
A10: Region 1 | B10: Product 1 | C10: Customer 8 | D10: Person 8 | E10: 667 | F10: 609 | G10: 780 | H10: 559 | I10: 673 | J10: 727 | K10: 730 | L10: 550 | M10: 787 | N10: 609 | O10: 762 | P10: 604 | Q10: 555 | R10: 747 | S10: 640 | T10: 649 | U10: 565 | V10: 725 | W10: 602 | X10: 594 | Y10: 799 | Z10: 721 | AA10: 786 | AB10: 589 | AC10: 8057 | AD10: 7972
A11: Region 1 | B11: Product 1 | C11: Customer 9 | D11: Person 9 | E11: 890 | F11: 751 | G11: 645 | H11: 807 | I11: 845 | J11: 820 | K11: 832 | L11: 771 | M11: 724 | N11: 696 | O11: 657 | P11: 899 | Q11: 693 | R11: 705 | S11: 749 | T11: 758 | U11: 774 | V11: 652 | W11: 801 | X11: 815 | Y11: 649 | Z11: 638 | AA11: 615 | AB11: 896 | AC11: 9337 | AD11: 8745
A12: Region 1 | B12: Product 1 | C12: Customer 10 | D12: Person 10 | E12: 711 | F12: 624 | G12: 804 | H12: 885 | I12: 873 | J12: 628 | K12: 666 | L12: 648 | M12: 879 | N12: 779 | O12: 782 | P12: 605 | Q12: 830 | R12: 775 | S12: 895 | T12: 707 | U12: 826 | V12: 719 | W12: 845 | X12: 615 | Y12: 839 | Z12: 779 | AA12: 822 | AB12: 866 | AC12: 8884 | AD12: 9518
A13: Region 1 | B13: Product 1 | C13: Customer 11 | D13: Person 11 | E13: 651 | F13: 788 | G13: 748 | H13: 703 | I13: 701 | J13: 692 | K13: 771 | L13: 738 | M13: 646 | N13: 608 | O13: 786 | P13: 737 | Q13: 603 | R13: 604 | S13: 632 | T13: 680 | U13: 729 | V13: 756 | W13: 795 | X13: 772 | Y13: 663 | Z13: 768 | AA13: 735 | AB13: 683 | AC13: 8569 | AD13: 8420
A14: Region 1 | B14: Product 1 | C14: Customer 12 | D14: Person 12 | E14: 1075 | F14: 1154 | G14: 866 | H14: 1055 | I14: 990 | J14: 1364 | K14: 934 | L14: 1193 | M14: 1161 | N14: 1323 | O14: 1060 | P14: 1058 | Q14: 1117 | R14: 944 | S14: 1004 | T14: 1172 | U14: 1074 | V14: 1283 | W14: 840 | X14: 1050 | Y14: 1031 | Z14: 852 | AA14: 1192 | AB14: 1113 | AC14: 13233 | AD14: 12672
A15: Region 1 | B15: Product 2 | C15: Customer 1 | D15: Person 1 | E15: 580 | F15: 682 | G15: 641 | H15: 761 | I15: 759 | J15: 787 | K15: 595 | L15: 654 | M15: 763 | N15: 591 | O15: 639 | P15: 722 | Q15: 745 | R15: 685 | S15: 678 | T15: 641 | U15: 600 | V15: 690 | W15: 766 | X15: 783 | Y15: 662 | Z15: 592 | AA15: 636 | AB15: 711 | AC15: 8174 | AD15: 8189
A16: Region 1 | B16: Product 2 | C16: Customer 2 | D16: Person 2 | E16: 756 | F16: 790 | G16: 609 | H16: 886 | I16: 656 | J16: 620 | K16: 668 | L16: 786 | M16: 755 | N16: 738 | O16: 742 | P16: 655 | Q16: 793 | R16: 647 | S16: 653 | T16: 856 | U16: 687 | V16: 744 | W16: 874 | X16: 795 | Y16: 881 | Z16: 806 | AA16: 772 | AB16: 883 | AC16: 8661 | AD16: 9391
A17: Region 1 | B17: Product 2 | C17: Customer 3 | D17: Person 3 | E17: 779 | F17: 659 | G17: 813 | H17: 800 | I17: 859 | J17: 844 | K17: 714 | L17: 764 | M17: 881 | N17: 693 | O17: 739 | P17: 753 | Q17: 860 | R17: 872 | S17: 833 | T17: 833 | U17: 835 | V17: 870 | W17: 863 | X17: 896 | Y17: 775 | Z17: 867 | AA17: 617 | AB17: 702 | AC17: 9298 | AD17: 9823
A18: Region 1 | B18: Product 2 | C18: Customer 4 | D18: Person 4 | E18: 658 | F18: 681 | G18: 756 | H18: 717 | I18: 621 | J18: 766 | K18: 780 | L18: 712 | M18: 765 | N18: 620 | O18: 651 | P18: 619 | Q18: 682 | R18: 696 | S18: 749 | T18: 757 | U18: 735 | V18: 654 | W18: 729 | X18: 755 | Y18: 677 | Z18: 610 | AA18: 700 | AB18: 624 | AC18: 8346 | AD18: 8368
A19: Region 1 | B19: Product 2 | C19: Customer 5 | D19: Person 5 | E19: 1230 | F19: 817 | G19: 1030 | H19: 1078 | I19: 1093 | J19: 1172 | K19: 1323 | L19: 1053 | M19: 1121 | N19: 1301 | O19: 1103 | P19: 1190 | Q19: 1248 | R19: 1007 | S19: 1003 | T19: 908 | U19: 830 | V19: 1107 | W19: 800 | X19: 1117 | Y19: 1189 | Z19: 1352 | AA19: 1084 | AB19: 1012 | AC19: 13511 | AD19: 12657
A20: Region 1 | B20: Product 2 | C20: Customer 6 | D20: Person 6 | E20: 727 | F20: 586 | G20: 583 | H20: 673 | I20: 706 | J20: 610 | K20: 645 | L20: 556 | M20: 560 | N20: 646 | O20: 658 | P20: 592 | Q20: 630 | R20: 576 | S20: 657 | T20: 574 | U20: 586 | V20: 600 | W20: 625 | X20: 568 | Y20: 597 | Z20: 698 | AA20: 588 | AB20: 596 | AC20: 7542 | AD20: 7295
A21: Region 1 | B21: Product 2 | C21: Customer 7 | D21: Person 7 | E21: 642 | F21: 778 | G21: 843 | H21: 881 | I21: 726 | J21: 850 | K21: 827 | L21: 759 | M21: 721 | N21: 618 | O21: 757 | P21: 899 | Q21: 632 | R21: 853 | S21: 824 | T21: 833 | U21: 880 | V21: 787 | W21: 760 | X21: 726 | Y21: 637 | Z21: 669 | AA21: 844 | AB21: 875 | AC21: 9301 | AD21: 9320
A22: Region 1 | B22: Product 2 | C22: Customer 8 | D22: Person 8 | E22: 888 | F22: 697 | G22: 861 | H22: 701 | I22: 748 | J22: 779 | K22: 850 | L22: 744 | M22: 720 | N22: 613 | O22: 651 | P22: 870 | Q22: 651 | R22: 871 | S22: 870 | T22: 725 | U22: 691 | V22: 848 | W22: 689 | X22: 847 | Y22: 615 | Z22: 706 | AA22: 755 | AB22: 754 | AC22: 9122 | AD22: 9022
A23: Region 1 | B23: Product 2 | C23: Customer 9 | D23: Person 9 | E23: 605 | F23: 749 | G23: 605 | H23: 729 | I23: 600 | J23: 795 | K23: 695 | L23: 680 | M23: 606 | N23: 782 | O23: 765 | P23: 774 | Q23: 767 | R23: 705 | S23: 740 | T23: 627 | U23: 696 | V23: 615 | W23: 693 | X23: 626 | Y23: 625 | Z23: 712 | AA23: 710 | AB23: 728 | AC23: 8385 | AD23: 8244
A24: Region 1 | B24: Product 2 | C24: Customer 10 | D24: Person 10 | E24: 1073 | F24: 1161 | G24: 905 | H24: 1017 | I24: 895 | J24: 1224 | K24: 1130 | L24: 1314 | M24: 1213 | N24: 1254 | O24: 942 | P24: 903 | Q24: 870 | R24: 1151 | S24: 807 | T24: 878 | U24: 1325 | V24: 804 | W24: 905 | X24: 1057 | Y24: 1193 | Z24: 1375 | AA24: 923 | AB24: 1093 | AC24: 13031 | AD24: 12381
A25: Region 1 | B25: Product 2 | C25: Customer 11 | D25: Person 11 | E25: 689 | F25: 688 | G25: 737 | H25: 759 | I25: 581 | J25: 608 | K25: 576 | L25: 704 | M25: 789 | N25: 617 | O25: 743 | P25: 684 | Q25: 617 | R25: 554 | S25: 638 | T25: 611 | U25: 614 | V25: 697 | W25: 721 | X25: 691 | Y25: 771 | Z25: 570 | AA25: 704 | AB25: 764 | AC25: 8175 | AD25: 7952
A26: Region 1 | B26: Product 2 | C26: Customer 12 | D26: Person 12 | E26: 715 | F26: 636 | G26: 679 | H26: 832 | I26: 780 | J26: 711 | K26: 879 | L26: 660 | M26: 880 | N26: 737 | O26: 602 | P26: 735 | Q26: 684 | R26: 721 | S26: 838 | T26: 806 | U26: 855 | V26: 872 | W26: 605 | X26: 675 | Y26: 802 | Z26: 662 | AA26: 600 | AB26: 721 | AC26: 8846 | AD26: 8841
A27: Region 1 | B27: Product 3 | C27: Customer 1 | D27: Person 1 | E27: 637 | F27: 646 | G27: 671 | H27: 714 | I27: 744 | J27: 786 | K27: 784 | L27: 697 | M27: 636 | N27: 654 | O27: 760 | P27: 722 | Q27: 889 | R27: 631 | S27: 744 | T27: 834 | U27: 670 | V27: 853 | W27: 830 | X27: 827 | Y27: 650 | Z27: 696 | AA27: 631 | AB27: 851 | AC27: 8451 | AD27: 9106
A28: Region 1 | B28: Product 3 | C28: Customer 2 | D28: Person 2 | E28: 692 | F28: 716 | G28: 645 | H28: 726 | I28: 681 | J28: 601 | K28: 733 | L28: 627 | M28: 783 | N28: 614 | O28: 602 | P28: 705 | Q28: 756 | R28: 746 | S28: 623 | T28: 682 | U28: 780 | V28: 672 | W28: 679 | X28: 624 | Y28: 751 | Z28: 727 | AA28: 779 | AB28: 761 | AC28: 8125 | AD28: 8580
A29: Region 1 | B29: Product 3 | C29: Customer 3 | D29: Person 3 | E29: 1284 | F29: 1302 | G29: 1316 | H29: 1210 | I29: 823 | J29: 1206 | K29: 1253 | L29: 1043 | M29: 1223 | N29: 1400 | O29: 1094 | P29: 881 | Q29: 1006 | R29: 1045 | S29: 1173 | T29: 1102 | U29: 1065 | V29: 1363 | W29: 1132 | X29: 1212 | Y29: 1196 | Z29: 1189 | AA29: 962 | AB29: 1359 | AC29: 14035 | AD29: 13804
A30: Region 1 | B30: Product 3 | C30: Customer 4 | D30: Person 4 | E30: 660 | F30: 750 | G30: 649 | H30: 652 | I30: 738 | J30: 694 | K30: 756 | L30: 551 | M30: 768 | N30: 647 | O30: 725 | P30: 780 | Q30: 608 | R30: 673 | S30: 752 | T30: 698 | U30: 642 | V30: 671 | W30: 575 | X30: 633 | Y30: 704 | Z30: 652 | AA30: 717 | AB30: 775 | AC30: 8370 | AD30: 8100
A31: Region 1 | B31: Product 3 | C31: Customer 5 | D31: Person 5 | E31: 880 | F31: 775 | G31: 830 | H31: 713 | I31: 825 | J31: 722 | K31: 779 | L31: 768 | M31: 715 | N31: 708 | O31: 664 | P31: 609 | Q31: 822 | R31: 630 | S31: 652 | T31: 732 | U31: 733 | V31: 849 | W31: 880 | X31: 848 | Y31: 850 | Z31: 788 | AA31: 768 | AB31: 612 | AC31: 8988 | AD31: 9164
A32: Region 1 | B32: Product 3 | C32: Customer 6 | D32: Person 6 | E32: 804 | F32: 646 | G32: 608 | H32: 674 | I32: 698 | J32: 850 | K32: 617 | L32: 751 | M32: 655 | N32: 656 | O32: 673 | P32: 877 | Q32: 608 | R32: 794 | S32: 631 | T32: 743 | U32: 843 | V32: 800 | W32: 705 | X32: 860 | Y32: 686 | Z32: 896 | AA32: 663 | AB32: 779 | AC32: 8509 | AD32: 9008
A33: Region 1 | B33: Product 3 | C33: Customer 7 | D33: Person 7 | E33: 712 | F33: 663 | G33: 689 | H33: 778 | I33: 603 | J33: 785 | K33: 600 | L33: 776 | M33: 714 | N33: 785 | O33: 681 | P33: 762 | Q33: 634 | R33: 720 | S33: 780 | T33: 789 | U33: 644 | V33: 606 | W33: 683 | X33: 708 | Y33: 718 | Z33: 773 | AA33: 600 | AB33: 777 | AC33: 8548 | AD33: 8432
A34: Region 1 | B34: Product 3 | C34: Customer 8 | D34: Person 8 | E34: 826 | F34: 1022 | G34: 1238 | H34: 993 | I34: 1219 | J34: 1107 | K34: 965 | L34: 867 | M34: 1205 | N34: 872 | O34: 892 | P34: 944 | Q34: 1281 | R34: 993 | S34: 1254 | T34: 1366 | U34: 834 | V34: 883 | W34: 898 | X34: 1255 | Y34: 1114 | Z34: 1137 | AA34: 900 | AB34: 1291 | AC34: 12150 | AD34: 13206
A35: Region 1 | B35: Product 3 | C35: Customer 9 | D35: Person 9 | E35: 786 | F35: 614 | G35: 706 | H35: 763 | I35: 695 | J35: 648 | K35: 728 | L35: 578 | M35: 680 | N35: 573 | O35: 701 | P35: 645 | Q35: 795 | R35: 763 | S35: 674 | T35: 628 | U35: 559 | V35: 702 | W35: 685 | X35: 663 | Y35: 550 | Z35: 708 | AA35: 680 | AB35: 776 | AC35: 8117 | AD35: 8183
A36: Region 1 | B36: Product 3 | C36: Customer 10 | D36: Person 10 | E36: 800 | F36: 674 | G36: 757 | H36: 825 | I36: 779 | J36: 751 | K36: 693 | L36: 608 | M36: 675 | N36: 705 | O36: 892 | P36: 653 | Q36: 608 | R36: 619 | S36: 814 | T36: 823 | U36: 759 | V36: 740 | W36: 873 | X36: 731 | Y36: 796 | Z36: 866 | AA36: 773 | AB36: 878 | AC36: 8812 | AD36: 9280
A37: Region 1 | B37: Product 3 | C37: Customer 11 | D37: Person 11 | E37: 754 | F37: 664 | G37: 667 | H37: 787 | I37: 894 | J37: 740 | K37: 803 | L37: 883 | M37: 755 | N37: 708 | O37: 612 | P37: 730 | Q37: 832 | R37: 674 | S37: 771 | T37: 704 | U37: 867 | V37: 791 | W37: 747 | X37: 695 | Y37: 704 | Z37: 671 | AA37: 874 | AB37: 829 | AC37: 8997 | AD37: 9159
A38: Region 1 | B38: Product 3 | C38: Customer 12 | D38: Person 12 | E38: 782 | F38: 660 | G38: 631 | H38: 685 | I38: 646 | J38: 605 | K38: 701 | L38: 709 | M38: 699 | N38: 725 | O38: 725 | P38: 753 | Q38: 665 | R38: 645 | S38: 698 | T38: 682 | U38: 779 | V38: 757 | W38: 773 | X38: 778 | Y38: 726 | Z38: 652 | AA38: 776 | AB38: 724 | AC38: 8321 | AD38: 8655
A39: Region 2 | B39: Product 4 | C39: Customer 1 | D39: Person 1 | E39: 1194 | F39: 1397 | G39: 1397 | H39: 1064 | I39: 1211 | J39: 1183 | K39: 827 | L39: 1088 | M39: 1394 | N39: 1076 | O39: 1106 | P39: 1372 | Q39: 1107 | R39: 871 | S39: 910 | T39: 1305 | U39: 1054 | V39: 1122 | W39: 1314 | X39: 1360 | Y39: 801 | Z39: 1275 | AA39: 1316 | AB39: 918 | AC39: 14309 | AD39: 13353
A40: Region 2 | B40: Product 4 | C40: Customer 2 | D40: Person 2 | E40: 733 | F40: 607 | G40: 647 | H40: 786 | I40: 719 | J40: 775 | K40: 567 | L40: 620 | M40: 577 | N40: 671 | O40: 689 | P40: 762 | Q40: 609 | R40: 780 | S40: 753 | T40: 590 | U40: 696 | V40: 695 | W40: 581 | X40: 739 | Y40: 564 | Z40: 598 | AA40: 634 | AB40: 689 | AC40: 8153 | AD40: 7928
A41: Region 2 | B41: Product 4 | C41: Customer 3 | D41: Person 3 | E41: 666 | F41: 815 | G41: 820 | H41: 862 | I41: 847 | J41: 752 | K41: 657 | L41: 620 | M41: 869 | N41: 848 | O41: 848 | P41: 886 | Q41: 831 | R41: 712 | S41: 632 | T41: 883 | U41: 786 | V41: 821 | W41: 631 | X41: 615 | Y41: 712 | Z41: 870 | AA41: 785 | AB41: 794 | AC41: 9490 | AD41: 9072
A42: Region 2 | B42: Product 4 | C42: Customer 4 | D42: Person 4 | E42: 746 | F42: 702 | G42: 886 | H42: 608 | I42: 748 | J42: 652 | K42: 755 | L42: 807 | M42: 607 | N42: 810 | O42: 778 | P42: 684 | Q42: 756 | R42: 759 | S42: 673 | T42: 638 | U42: 795 | V42: 785 | W42: 601 | X42: 755 | Y42: 699 | Z42: 715 | AA42: 618 | AB42: 829 | AC42: 8783 | AD42: 8623
A43: Region 2 | B43: Product 4 | C43: Customer 5 | D43: Person 5 | E43: 753 | F43: 690 | G43: 646 | H43: 653 | I43: 795 | J43: 736 | K43: 667 | L43: 668 | M43: 733 | N43: 674 | O43: 620 | P43: 778 | Q43: 757 | R43: 738 | S43: 661 | T43: 721 | U43: 639 | V43: 601 | W43: 732 | X43: 621 | Y43: 668 | Z43: 764 | AA43: 742 | AB43: 761 | AC43: 8413 | AD43: 8405
A44: Region 2 | B44: Product 4 | C44: Customer 6 | D44: Person 6 | E44: 1271 | F44: 1188 | G44: 1090 | H44: 856 | I44: 840 | J44: 1217 | K44: 933 | L44: 1296 | M44: 976 | N44: 971 | O44: 869 | P44: 896 | Q44: 1323 | R44: 1247 | S44: 1081 | T44: 985 | U44: 1091 | V44: 951 | W44: 1175 | X44: 1299 | Y44: 1254 | Z44: 857 | AA44: 1360 | AB44: 1386 | AC44: 12403 | AD44: 14009
A45: Region 2 | B45: Product 4 | C45: Customer 7 | D45: Person 7 | E45: 797 | F45: 641 | G45: 785 | H45: 621 | I45: 709 | J45: 657 | K45: 570 | L45: 565 | M45: 560 | N45: 759 | O45: 573 | P45: 741 | Q45: 728 | R45: 717 | S45: 689 | T45: 634 | U45: 756 | V45: 563 | W45: 626 | X45: 748 | Y45: 792 | Z45: 673 | AA45: 679 | AB45: 787 | AC45: 7978 | AD45: 8392
A46: Region 2 | B46: Product 4 | C46: Customer 8 | D46: Person 8 | E46: 686 | F46: 637 | G46: 731 | H46: 863 | I46: 821 | J46: 678 | K46: 833 | L46: 840 | M46: 748 | N46: 838 | O46: 618 | P46: 822 | Q46: 625 | R46: 820 | S46: 865 | T46: 616 | U46: 606 | V46: 793 | W46: 626 | X46: 726 | Y46: 664 | Z46: 603 | AA46: 794 | AB46: 657 | AC46: 9115 | AD46: 8395
A47: Region 2 | B47: Product 4 | C47: Customer 9 | D47: Person 9 | E47: 618 | F47: 782 | G47: 753 | H47: 691 | I47: 642 | J47: 833 | K47: 633 | L47: 829 | M47: 656 | N47: 758 | O47: 626 | P47: 874 | Q47: 778 | R47: 884 | S47: 739 | T47: 833 | U47: 665 | V47: 766 | W47: 614 | X47: 619 | Y47: 843 | Z47: 614 | AA47: 600 | AB47: 875 | AC47: 8695 | AD47: 8830
A48: Region 2 | B48: Product 4 | C48: Customer 10 | D48: Person 10 | E48: 737 | F48: 604 | G48: 749 | H48: 669 | I48: 740 | J48: 724 | K48: 600 | L48: 671 | M48: 603 | N48: 624 | O48: 700 | P48: 693 | Q48: 631 | R48: 701 | S48: 693 | T48: 792 | U48: 672 | V48: 691 | W48: 698 | X48: 683 | Y48: 643 | Z48: 668 | AA48: 719 | AB48: 702 | AC48: 8114 | AD48: 8293
A49: Region 2 | B49: Product 4 | C49: Customer 11 | D49: Person 11 | E49: 849 | F49: 989 | G49: 1062 | H49: 1241 | I49: 1193 | J49: 847 | K49: 1212 | L49: 1000 | M49: 1378 | N49: 1198 | O49: 1319 | P49: 898 | Q49: 1203 | R49: 800 | S49: 1341 | T49: 861 | U49: 1383 | V49: 1198 | W49: 1186 | X49: 921 | Y49: 1358 | Z49: 1352 | AA49: 1376 | AB49: 1387 | AC49: 13186 | AD49: 14366
A50: Region 2 | B50: Product 4 | C50: Customer 12 | D50: Person 12 | E50: 655 | F50: 552 | G50: 783 | H50: 759 | I50: 655 | J50: 754 | K50: 796 | L50: 634 | M50: 600 | N50: 652 | O50: 585 | P50: 707 | Q50: 767 | R50: 601 | S50: 684 | T50: 755 | U50: 713 | V50: 756 | W50: 729 | X50: 610 | Y50: 699 | Z50: 755 | AA50: 685 | AB50: 752 | AC50: 8132 | AD50: 8506
A51: Region 2 | B51: Product 5 | C51: Customer 1 | D51: Person 1 | E51: 828 | F51: 752 | G51: 854 | H51: 899 | I51: 822 | J51: 701 | K51: 826 | L51: 833 | M51: 724 | N51: 612 | O51: 872 | P51: 768 | Q51: 797 | R51: 699 | S51: 645 | T51: 835 | U51: 765 | V51: 610 | W51: 685 | X51: 608 | Y51: 674 | Z51: 613 | AA51: 847 | AB51: 821 | AC51: 9491 | AD51: 8599
A52: Region 2 | B52: Product 5 | C52: Customer 2 | D52: Person 2 | E52: 701 | F52: 880 | G52: 768 | H52: 803 | I52: 629 | J52: 688 | K52: 764 | L52: 814 | M52: 832 | N52: 883 | O52: 721 | P52: 879 | Q52: 674 | R52: 727 | S52: 633 | T52: 733 | U52: 746 | V52: 682 | W52: 839 | X52: 610 | Y52: 753 | Z52: 847 | AA52: 641 | AB52: 745 | AC52: 9362 | AD52: 8630
A53: Region 2 | B53: Product 5 | C53: Customer 3 | D53: Person 3 | E53: 636 | F53: 608 | G53: 662 | H53: 734 | I53: 766 | J53: 627 | K53: 673 | L53: 761 | M53: 785 | N53: 685 | O53: 769 | P53: 705 | Q53: 678 | R53: 644 | S53: 726 | T53: 793 | U53: 786 | V53: 693 | W53: 713 | X53: 701 | Y53: 650 | Z53: 637 | AA53: 770 | AB53: 608 | AC53: 8411 | AD53: 8399
A54: Region 2 | B54: Product 5 | C54: Customer 4 | D54: Person 4 | E54: 854 | F54: 1079 | G54: 1313 | H54: 1214 | I54: 1393 | J54: 1176 | K54: 1272 | L54: 1288 | M54: 829 | N54: 1277 | O54: 1165 | P54: 856 | Q54: 953 | R54: 1070 | S54: 1297 | T54: 1261 | U54: 1037 | V54: 1179 | W54: 1147 | X54: 838 | Y54: 1038 | Z54: 895 | AA54: 804 | AB54: 1025 | AC54: 13716 | AD54: 12544
A55: Region 2 | B55: Product 5 | C55: Customer 5 | D55: Person 5 | E55: 678 | F55: 599 | G55: 569 | H55: 766 | I55: 664 | J55: 650 | K55: 763 | L55: 662 | M55: 733 | N55: 718 | O55: 726 | P55: 585 | Q55: 568 | R55: 612 | S55: 603 | T55: 716 | U55: 623 | V55: 782 | W55: 725 | X55: 753 | Y55: 774 | Z55: 672 | AA55: 570 | AB55: 732 | AC55: 8113 | AD55: 8130
A56: Region 2 | B56: Product 5 | C56: Customer 6 | D56: Person 6 | E56: 848 | F56: 755 | G56: 642 | H56: 600 | I56: 749 | J56: 742 | K56: 667 | L56: 642 | M56: 601 | N56: 831 | O56: 792 | P56: 743 | Q56: 605 | R56: 834 | S56: 884 | T56: 795 | U56: 728 | V56: 791 | W56: 641 | X56: 832 | Y56: 696 | Z56: 684 | AA56: 810 | AB56: 692 | AC56: 8612 | AD56: 8992
A57: Region 2 | B57: Product 5 | C57: Customer 7 | D57: Person 7 | E57: 739 | F57: 850 | G57: 712 | H57: 733 | I57: 873 | J57: 638 | K57: 850 | L57: 900 | M57: 725 | N57: 735 | O57: 824 | P57: 735 | Q57: 811 | R57: 870 | S57: 793 | T57: 712 | U57: 771 | V57: 881 | W57: 894 | X57: 651 | Y57: 684 | Z57: 674 | AA57: 763 | AB57: 878 | AC57: 9314 | AD57: 9382
A58: Region 2 | B58: Product 5 | C58: Customer 8 | D58: Person 8 | E58: 799 | F58: 763 | G58: 771 | H58: 671 | I58: 763 | J58: 675 | K58: 735 | L58: 798 | M58: 744 | N58: 627 | O58: 730 | P58: 677 | Q58: 783 | R58: 661 | S58: 769 | T58: 630 | U58: 778 | V58: 642 | W58: 662 | X58: 799 | Y58: 690 | Z58: 727 | AA58: 794 | AB58: 664 | AC58: 8753 | AD58: 8599
A59: Region 2 | B59: Product 5 | C59: Customer 9 | D59: Person 9 | E59: 1253 | F59: 1047 | G59: 1370 | H59: 1061 | I59: 974 | J59: 853 | K59: 927 | L59: 1030 | M59: 1163 | N59: 890 | O59: 1057 | P59: 1025 | Q59: 1084 | R59: 895 | S59: 951 | T59: 1186 | U59: 1084 | V59: 931 | W59: 1064 | X59: 997 | Y59: 1070 | Z59: 1265 | AA59: 1294 | AB59: 1277 | AC59: 12650 | AD59: 13098
A60: Region 2 | B60: Product 5 | C60: Customer 10 | D60: Person 10 | E60: 798 | F60: 727 | G60: 572 | H60: 608 | I60: 602 | J60: 800 | K60: 688 | L60: 617 | M60: 800 | N60: 658 | O60: 675 | P60: 618 | Q60: 717 | R60: 635 | S60: 566 | T60: 618 | U60: 697 | V60: 761 | W60: 552 | X60: 760 | Y60: 609 | Z60: 686 | AA60: 733 | AB60: 698 | AC60: 8163 | AD60: 8032
A61: Region 2 | B61: Product 5 | C61: Customer 11 | D61: Person 11 | E61: 794 | F61: 698 | G61: 694 | H61: 834 | I61: 760 | J61: 817 | K61: 807 | L61: 706 | M61: 801 | N61: 775 | O61: 760 | P61: 610 | Q61: 781 | R61: 635 | S61: 816 | T61: 757 | U61: 841 | V61: 660 | W61: 819 | X61: 794 | Y61: 899 | Z61: 657 | AA61: 827 | AB61: 665 | AC61: 9056 | AD61: 9151
A62: Region 2 | B62: Product 5 | C62: Customer 12 | D62: Person 12 | E62: 854 | F62: 631 | G62: 878 | H62: 807 | I62: 833 | J62: 886 | K62: 708 | L62: 875 | M62: 879 | N62: 681 | O62: 673 | P62: 737 | Q62: 875 | R62: 898 | S62: 877 | T62: 743 | U62: 860 | V62: 801 | W62: 713 | X62: 618 | Y62: 673 | Z62: 879 | AA62: 670 | AB62: 643 | AC62: 9442 | AD62: 9250
A63: Region 2 | B63: Product 6 | C63: Customer 1 | D63: Person 1 | E63: 778 | F63: 663 | G63: 675 | H63: 714 | I63: 785 | J63: 625 | K63: 604 | L63: 642 | M63: 731 | N63: 646 | O63: 715 | P63: 798 | Q63: 734 | R63: 664 | S63: 784 | T63: 656 | U63: 783 | V63: 732 | W63: 607 | X63: 667 | Y63: 707 | Z63: 629 | AA63: 626 | AB63: 743 | AC63: 8376 | AD63: 8332
A64: Region 2 | B64: Product 6 | C64: Customer 2 | D64: Person 2 | E64: 1017 | F64: 884 | G64: 1098 | H64: 1292 | I64: 927 | J64: 889 | K64: 974 | L64: 919 | M64: 1393 | N64: 1027 | O64: 999 | P64: 1230 | Q64: 1245 | R64: 1284 | S64: 1061 | T64: 1192 | U64: 1387 | V64: 1256 | W64: 1076 | X64: 1188 | Y64: 821 | Z64: 1063 | AA64: 1088 | AB64: 937 | AC64: 12649 | AD64: 13598
A65: Region 2 | B65: Product 6 | C65: Customer 3 | D65: Person 3 | E65: 708 | F65: 715 | G65: 723 | H65: 711 | I65: 774 | J65: 653 | K65: 557 | L65: 779 | M65: 586 | N65: 744 | O65: 590 | P65: 793 | Q65: 656 | R65: 585 | S65: 601 | T65: 788 | U65: 618 | V65: 611 | W65: 793 | X65: 679 | Y65: 689 | Z65: 640 | AA65: 645 | AB65: 596 | AC65: 8333 | AD65: 7901
A66: Region 2 | B66: Product 6 | C66: Customer 4 | D66: Person 4 | E66: 654 | F66: 738 | G66: 647 | H66: 799 | I66: 620 | J66: 897 | K66: 625 | L66: 839 | M66: 653 | N66: 651 | O66: 871 | P66: 788 | Q66: 642 | R66: 809 | S66: 795 | T66: 825 | U66: 894 | V66: 615 | W66: 622 | X66: 646 | Y66: 766 | Z66: 753 | AA66: 674 | AB66: 722 | AC66: 8782 | AD66: 8763
A67: Region 2 | B67: Product 6 | C67: Customer 5 | D67: Person 5 | E67: 617 | F67: 798 | G67: 891 | H67: 674 | I67: 605 | J67: 844 | K67: 804 | L67: 857 | M67: 836 | N67: 648 | O67: 640 | P67: 776 | Q67: 711 | R67: 849 | S67: 759 | T67: 758 | U67: 744 | V67: 775 | W67: 799 | X67: 649 | Y67: 830 | Z67: 707 | AA67: 858 | AB67: 855 | AC67: 8990 | AD67: 9294
A68: Region 2 | B68: Product 6 | C68: Customer 6 | D68: Person 6 | E68: 707 | F68: 603 | G68: 687 | H68: 671 | I68: 628 | J68: 764 | K68: 799 | L68: 623 | M68: 740 | N68: 640 | O68: 609 | P68: 702 | Q68: 624 | R68: 633 | S68: 687 | T68: 716 | U68: 711 | V68: 611 | W68: 760 | X68: 752 | Y68: 655 | Z68: 614 | AA68: 762 | AB68: 770 | AC68: =SUM(E68:P68) -> 8173 | AD68: =SUM(Q68:AB68) -> 8295
A69: Region 2 | B69: Product 6 | C69: Customer 7 | D69: Person 7 | E69: 845 | F69: 900 | G69: 1044 | H69: 982 | I69: 1390 | J69: 810 | K69: 973 | L69: 802 | M69: 1320 | N69: 1185 | O69: 1175 | P69: 907 | Q69: 1218 | R69: 1089 | S69: 942 | T69: 1276 | U69: 1388 | V69: 1171 | W69: 1277 | X69: 897 | Y69: 1130 | Z69: 812 | AA69: 1280 | AB69: 1307 | AC69: 12333 | AD69: 13787
A70: Region 2 | B70: Product 6 | C70: Customer 8 | D70: Person 8 | E70: 647 | F70: 558 | G70: 571 | H70: 578 | I70: 794 | J70: 759 | K70: 652 | L70: 704 | M70: 616 | N70: 574 | O70: 787 | P70: 581 | Q70: 551 | R70: 794 | S70: 605 | T70: 566 | U70: 646 | V70: 760 | W70: 573 | X70: 640 | Y70: 592 | Z70: 695 | AA70: 554 | AB70: 639 | AC70: 7821 | AD70: 7615
A71: Region 2 | B71: Product 6 | C71: Customer 9 | D71: Person 9 | E71: 622 | F71: 743 | G71: 803 | H71: 851 | I71: 749 | J71: 810 | K71: 797 | L71: 700 | M71: 718 | N71: 784 | O71: 606 | P71: 601 | Q71: 787 | R71: 645 | S71: 665 | T71: 624 | U71: 731 | V71: 683 | W71: 713 | X71: 626 | Y71: 728 | Z71: 854 | AA71: 740 | AB71: 635 | AC71: 8784 | AD71: 8431
A72: Region 2 | B72: Product 6 | C72: Customer 10 | D72: Person 10 | E72: 601 | F72: 608 | G72: 782 | H72: 844 | I72: 688 | J72: 666 | K72: 777 | L72: 699 | M72: 751 | N72: 762 | O72: 706 | P72: 878 | Q72: 736 | R72: 744 | S72: 822 | T72: 881 | U72: 694 | V72: 761 | W72: 757 | X72: 744 | Y72: 806 | Z72: 782 | AA72: 820 | AB72: 728 | AC72: 8762 | AD72: 9275
A73: Region 2 | B73: Product 6 | C73: Customer 11 | D73: Person 11 | E73: 674 | F73: 674 | G73: 748 | H73: 650 | I73: 762 | J73: 665 | K73: 638 | L73: 710 | M73: 664 | N73: 753 | O73: 624 | P73: 791 | Q73: 604 | R73: 776 | S73: 715 | T73: 647 | U73: 625 | V73: 681 | W73: 610 | X73: 607 | Y73: 705 | Z73: 638 | AA73: 647 | AB73: 685 | AC73: 8353 | AD73: 7940
A74: Region 2 | B74: Product 6 | C74: Customer 12 | D74: Person 12 | E74: 805 | F74: 808 | G74: 1291 | H74: 1234 | I74: 1361 | J74: 1241 | K74: 1095 | L74: 1151 | M74: 848 | N74: 1105 | O74: 1332 | P74: 1264 | Q74: 1280 | R74: 1307 | S74: 874 | T74: 1278 | U74: 1137 | V74: 928 | W74: 1352 | X74: 1056 | Y74: 1113 | Z74: 1132 | AA74: 920 | AB74: 1014 | AC74: 13535 | AD74: 13391
A75: Region 3 | B75: Product 7 | C75: Customer 1 | D75: Person 1 | E75: 589 | F75: 749 | G75: 694 | H75: 739 | I75: 752 | J75: 723 | K75: 667 | L75: 723 | M75: 557 | N75: 671 | O75: 754 | P75: 702 | Q75: 591 | R75: 571 | S75: 722 | T75: 678 | U75: 715 | V75: 780 | W75: 637 | X75: 597 | Y75: 579 | Z75: 572 | AA75: 568 | AB75: 723 | AC75: 8320 | AD75: 7733
A76: Region 3 | B76: Product 7 | C76: Customer 2 | D76: Person 2 | E76: 766 | F76: 779 | G76: 632 | H76: 885 | I76: 607 | J76: 737 | K76: 611 | L76: 817 | M76: 738 | N76: 795 | O76: 670 | P76: 646 | Q76: 875 | R76: 746 | S76: 675 | T76: 842 | U76: 865 | V76: 841 | W76: 697 | X76: 633 | Y76: 682 | Z76: 844 | AA76: 863 | AB76: 897 | AC76: 8683 | AD76: 9460
A77: Region 3 | B77: Product 7 | C77: Customer 3 | D77: Person 3 | E77: 887 | F77: 876 | G77: 616 | H77: 862 | I77: 876 | J77: 623 | K77: 750 | L77: 745 | M77: 784 | N77: 804 | O77: 849 | P77: 623 | Q77: 889 | R77: 652 | S77: 784 | T77: 874 | U77: 767 | V77: 884 | W77: 694 | X77: 647 | Y77: 832 | Z77: 745 | AA77: 644 | AB77: 610 | AC77: 9295 | AD77: 9022
A78: Region 3 | B78: Product 7 | C78: Customer 4 | D78: Person 4 | E78: 635 | F78: 741 | G78: 692 | H78: 646 | I78: 626 | J78: 605 | K78: 672 | L78: 693 | M78: 667 | N78: 718 | O78: 709 | P78: 716 | Q78: 738 | R78: 649 | S78: 770 | T78: 760 | U78: 656 | V78: 618 | W78: 660 | X78: 789 | Y78: 784 | Z78: 617 | AA78: 797 | AB78: 632 | AC78: 8120 | AD78: 8470
A79: Region 3 | B79: Product 7 | C79: Customer 5 | D79: Person 5 | E79: 916 | F79: 1331 | G79: 814 | H79: 1060 | I79: 1097 | J79: 949 | K79: 1173 | L79: 830 | M79: 1153 | N79: 1345 | O79: 1085 | P79: 1106 | Q79: 1055 | R79: 1399 | S79: 1100 | T79: 1195 | U79: 1122 | V79: 1340 | W79: 905 | X79: 1369 | Y79: 1312 | Z79: 981 | AA79: 1229 | AB79: 1398 | AC79: 12859 | AD79: 14405
A80: Region 3 | B80: Product 7 | C80: Customer 6 | D80: Person 6 | E80: 694 | F80: 705 | G80: 666 | H80: 661 | I80: 710 | J80: 657 | K80: 649 | L80: 655 | M80: 643 | N80: 570 | O80: 670 | P80: 697 | Q80: 664 | R80: 620 | S80: 563 | T80: 572 | U80: 580 | V80: 628 | W80: 789 | X80: 699 | Y80: 778 | Z80: 697 | AA80: 563 | AB80: 599 | AC80: 7977 | AD80: 7752
A81: Region 3 | B81: Product 7 | C81: Customer 7 | D81: Person 7 | E81: 805 | F81: 859 | G81: 755 | H81: 871 | I81: 889 | J81: 758 | K81: 652 | L81: 800 | M81: 804 | N81: 890 | O81: 828 | P81: 741 | Q81: 831 | R81: 688 | S81: 821 | T81: 617 | U81: 687 | V81: 604 | W81: 896 | X81: 831 | Y81: 832 | Z81: 802 | AA81: 774 | AB81: 861 | AC81: 9652 | AD81: 9244
A82: Region 3 | B82: Product 7 | C82: Customer 8 | D82: Person 8 | E82: 670 | F82: 622 | G82: 810 | H82: 726 | I82: 827 | J82: 780 | K82: 622 | L82: 897 | M82: 603 | N82: 639 | O82: 786 | P82: 868 | Q82: 884 | R82: 667 | S82: 839 | T82: 725 | U82: 685 | V82: 663 | W82: 616 | X82: 847 | Y82: 885 | Z82: 762 | AA82: 806 | AB82: 686 | AC82: 8850 | AD82: 9065
A83: Region 3 | B83: Product 7 | C83: Customer 9 | D83: Person 9 | E83: 680 | F83: 799 | G83: 641 | H83: 796 | I83: 641 | J83: 657 | K83: 715 | L83: 759 | M83: 753 | N83: 612 | O83: 775 | P83: 764 | Q83: 685 | R83: 769 | S83: 754 | T83: 674 | U83: 759 | V83: 671 | W83: 643 | X83: 676 | Y83: 624 | Z83: 684 | AA83: 641 | AB83: 664 | AC83: 8592 | AD83: 8244
A84: Region 3 | B84: Product 7 | C84: Customer 10 | D84: Person 10 | E84: 875 | F84: 944 | G84: 866 | H84: 1224 | I84: 1184 | J84: 1149 | K84: 1386 | L84: 1120 | M84: 1375 | N84: 1185 | O84: 1188 | P84: 1003 | Q84: 1322 | R84: 1175 | S84: 1140 | T84: 1002 | U84: 892 | V84: 1149 | W84: 1204 | X84: 1216 | Y84: 1312 | Z84: 957 | AA84: 1104 | AB84: 1188 | AC84: 13499 | AD84: 13661
A85: Region 3 | B85: Product 7 | C85: Customer 11 | D85: Person 11 | E85: 749 | F85: 609 | G85: 788 | H85: 755 | I85: 763 | J85: 645 | K85: 606 | L85: 651 | M85: 660 | N85: 630 | O85: 775 | P85: 795 | Q85: 664 | R85: 714 | S85: 667 | T85: 642 | U85: 654 | V85: 676 | W85: 552 | X85: 595 | Y85: 644 | Z85: 785 | AA85: 633 | AB85: 800 | AC85: 8426 | AD85: 8026
A86: Region 3 | B86: Product 7 | C86: Customer 12 | D86: Person 12 | E86: 756 | F86: 603 | G86: 666 | H86: 739 | I86: 774 | J86: 706 | K86: 878 | L86: 658 | M86: 780 | N86: 664 | O86: 700 | P86: 656 | Q86: 684 | R86: 894 | S86: 685 | T86: 713 | U86: 626 | V86: 691 | W86: 776 | X86: 801 | Y86: 728 | Z86: 600 | AA86: 603 | AB86: 689 | AC86: 8580 | AD86: 8490
A87: Region 3 | B87: Product 8 | C87: Customer 1 | D87: Person 1 | E87: 657 | F87: 775 | G87: 756 | H87: 642 | I87: 840 | J87: 734 | K87: 703 | L87: 711 | M87: 617 | N87: 683 | O87: 760 | P87: 706 | Q87: 748 | R87: 687 | S87: 639 | T87: 764 | U87: 802 | V87: 748 | W87: 775 | X87: 624 | Y87: 815 | Z87: 647 | AA87: 692 | AB87: 687 | AC87: 8584 | AD87: 8628
A88: Region 3 | B88: Product 8 | C88: Customer 2 | D88: Person 2 | E88: 631 | F88: 643 | G88: 767 | H88: 774 | I88: 742 | J88: 711 | K88: 673 | L88: 742 | M88: 717 | N88: 779 | O88: 647 | P88: 657 | Q88: 607 | R88: 762 | S88: 797 | T88: 670 | U88: 661 | V88: 789 | W88: 615 | X88: 748 | Y88: 630 | Z88: 764 | AA88: 782 | AB88: 623 | AC88: 8483 | AD88: 8448
A89: Region 3 | B89: Product 8 | C89: Customer 3 | D89: Person 3 | E89: 1156 | F89: 1230 | G89: 858 | H89: 1239 | I89: 1009 | J89: 1191 | K89: 1043 | L89: 1051 | M89: 971 | N89: 874 | O89: 1135 | P89: 1246 | Q89: 1049 | R89: 1143 | S89: 1369 | T89: 1317 | U89: 835 | V89: 990 | W89: 1002 | X89: 992 | Y89: 900 | Z89: 1154 | AA89: 1120 | AB89: 1361 | AC89: 13003 | AD89: 13232
A90: Region 3 | B90: Product 8 | C90: Customer 4 | D90: Person 4 | E90: 681 | F90: 610 | G90: 753 | H90: 709 | I90: 689 | J90: 723 | K90: 566 | L90: 673 | M90: 796 | N90: 720 | O90: 728 | P90: 765 | Q90: 789 | R90: 765 | S90: 723 | T90: 746 | U90: 767 | V90: 673 | W90: 662 | X90: 577 | Y90: 571 | Z90: 787 | AA90: 712 | AB90: 800 | AC90: 8413 | AD90: 8572
A91: Region 3 | B91: Product 8 | C91: Customer 5 | D91: Person 5 | E91: 693 | F91: 684 | G91: 887 | H91: 827 | I91: 836 | J91: 885 | K91: 743 | L91: 767 | M91: 868 | N91: 655 | O91: 900 | P91: 643 | Q91: 777 | R91: 714 | S91: 714 | T91: 671 | U91: 666 | V91: 798 | W91: 731 | X91: 655 | Y91: 731 | Z91: 827 | AA91: 751 | AB91: 653 | AC91: 9388 | AD91: 8688
A92: Region 3 | B92: Product 8 | C92: Customer 6 | D92: Person 6 | E92: 693 | F92: 659 | G92: 792 | H92: 899 | I92: 758 | J92: 748 | K92: 733 | L92: 674 | M92: 689 | N92: 859 | O92: 642 | P92: 682 | Q92: 875 | R92: 754 | S92: 857 | T92: 897 | U92: 839 | V92: 818 | W92: 617 | X92: 815 | Y92: 756 | Z92: 794 | AA92: 682 | AB92: 899 | AC92: 8828 | AD92: 9603
A93: Region 3 | B93: Product 8 | C93: Customer 7 | D93: Person 7 | E93: 673 | F93: 744 | G93: 669 | H93: 660 | I93: 650 | J93: 635 | K93: 724 | L93: 644 | M93: 667 | N93: 687 | O93: 707 | P93: 617 | Q93: 655 | R93: 655 | S93: 646 | T93: 612 | U93: 722 | V93: 619 | W93: 736 | X93: 636 | Y93: 617 | Z93: 638 | AA93: 718 | AB93: 761 | AC93: 8077 | AD93: 8015
A94: Region 3 | B94: Product 8 | C94: Customer 8 | D94: Person 8 | E94: 1189 | F94: 924 | G94: 875 | H94: 1162 | I94: 822 | J94: 924 | K94: 1207 | L94: 1108 | M94: 875 | N94: 1363 | O94: 825 | P94: 1342 | Q94: 1238 | R94: 887 | S94: 1185 | T94: 859 | U94: 1375 | V94: 922 | W94: 1309 | X94: 1076 | Y94: 941 | Z94: 1100 | AA94: 939 | AB94: 881 | AC94: 12616 | AD94: 12712
A95: Region 3 | B95: Product 8 | C95: Customer 9 | D95: Person 9 | E95: 776 | F95: 768 | G95: 581 | H95: 702 | I95: 713 | J95: 763 | K95: 568 | L95: 614 | M95: 675 | N95: 661 | O95: 704 | P95: 604 | Q95: 791 | R95: 648 | S95: 650 | T95: 732 | U95: 749 | V95: 590 | W95: 759 | X95: 777 | Y95: 647 | Z95: 589 | AA95: 668 | AB95: 559 | AC95: 8129 | AD95: 8159
A96: Region 3 | B96: Product 8 | C96: Customer 10 | D96: Person 10 | E96: 680 | F96: 862 | G96: 810 | H96: 794 | I96: 818 | J96: 752 | K96: 663 | L96: 769 | M96: 855 | N96: 894 | O96: 697 | P96: 853 | Q96: 881 | R96: 899 | S96: 716 | T96: 875 | U96: 651 | V96: 606 | W96: 686 | X96: 641 | Y96: 862 | Z96: 734 | AA96: 642 | AB96: 797 | AC96: 9447 | AD96: 8990
A97: Region 3 | B97: Product 8 | C97: Customer 11 | D97: Person 11 | E97: 632 | F97: 606 | G97: 731 | H97: 692 | I97: 724 | J97: 848 | K97: 661 | L97: 858 | M97: 772 | N97: 655 | O97: 661 | P97: 715 | Q97: 724 | R97: 762 | S97: 685 | T97: 608 | U97: 864 | V97: 857 | W97: 900 | X97: 628 | Y97: 858 | Z97: 678 | AA97: 711 | AB97: 604 | AC97: 8555 | AD97: 8879
A98: Region 3 | B98: Product 8 | C98: Customer 12 | D98: Person 12 | E98: 666 | F98: 725 | G98: 764 | H98: 796 | I98: 726 | J98: 627 | K98: 707 | L98: 682 | M98: 614 | N98: 731 | O98: 663 | P98: 689 | Q98: 702 | R98: 708 | S98: 668 | T98: 644 | U98: 702 | V98: 713 | W98: 631 | X98: 738 | Y98: 682 | Z98: 771 | AA98: 725 | AB98: 630 | AC98: 8390 | AD98: 8314
A99: Region 3 | B99: Product 9 | C99: Customer 1 | D99: Person 1 | E99: 1098 | F99: 802 | G99: 1077 | H99: 1150 | I99: 839 | J99: 1364 | K99: 1057 | L99: 960 | M99: 1385 | N99: 1004 | O99: 1356 | P99: 1222 | Q99: 833 | R99: 1379 | S99: 1184 | T99: 980 | U99: 1137 | V99: 1310 | W99: 889 | X99: 1275 | Y99: 1275 | Z99: 983 | AA99: 1190 | AB99: 1277 | AC99: 13314 | AD99: 13712
A100: Region 3 | B100: Product 9 | C100: Customer 2 | D100: Person 2 | E100: 740 | F100: 556 | G100: 672 | H100: 650 | I100: 606 | J100: 558 | K100: 769 | L100: 662 | M100: 613 | N100: 554 | O100: 718 | P100: 579 | Q100: 612 | R100: 682 | S100: 780 | T100: 559 | U100: 796 | V100: 578 | W100: 630 | X100: 709 | Y100: 695 | Z100: 654 | AA100: 698 | AB100: 636 | AC100: 7677 | AD100: 8029
A101: Region 3 | B101: Product 9 | C101: Customer 3 | D101: Person 3 | E101: 772 | F101: 896 | G101: 827 | H101: 868 | I101: 883 | J101: 807 | K101: 673 | L101: 693 | M101: 635 | N101: 710 | O101: 836 | P101: 796 | Q101: 837 | R101: 898 | S101: 808 | T101: 760 | U101: 635 | V101: 881 | W101: 668 | X101: 877 | Y101: 736 | Z101: 646 | AA101: 743 | AB101: 836 | AC101: 9396 | AD101: 9325
A102: Region 3 | B102: Product 9 | C102: Customer 4 | D102: Person 4 | E102: 829 | F102: 814 | G102: 879 | H102: 898 | I102: 755 | J102: 793 | K102: 667 | L102: 835 | M102: 896 | N102: 830 | O102: 789 | P102: 714 | Q102: 848 | R102: 727 | S102: 887 | T102: 833 | U102: 724 | V102: 736 | W102: 798 | X102: 618 | Y102: 716 | Z102: 880 | AA102: 624 | AB102: 865 | AC102: 9699 | AD102: 9256
A103: Region 3 | B103: Product 9 | C103: Customer 5 | D103: Person 5 | E103: 755 | F103: 635 | G103: 727 | H103: 621 | I103: 643 | J103: 706 | K103: 669 | L103: 726 | M103: 744 | N103: 767 | O103: 713 | P103: 647 | Q103: 659 | R103: 774 | S103: 602 | T103: 697 | U103: 758 | V103: 622 | W103: 623 | X103: 730 | Y103: 781 | Z103: 677 | AA103: 633 | AB103: 771 | AC103: 8353 | AD103: 8327
A104: Region 3 | B104: Product 9 | C104: Customer 6 | D104: Person 6 | E104: 991 | F104: 879 | G104: 810 | H104: 1277 | I104: 1074 | J104: 1010 | K104: 1287 | L104: 883 | M104: 1260 | N104: 887 | O104: 1327 | P104: 1018 | Q104: 1021 | R104: 807 | S104: 1240 | T104: 832 | U104: 1214 | V104: 993 | W104: 1334 | X104: 1084 | Y104: 901 | Z104: 881 | AA104: 819 | AB104: 1396 | AC104: 12703 | AD104: 12522
A105: Region 3 | B105: Product 9 | C105: Customer 7 | D105: Person 7 | E105: 648 | F105: 681 | G105: 677 | H105: 602 | I105: 769 | J105: 715 | K105: 571 | L105: 588 | M105: 669 | N105: 695 | O105: 605 | P105: 766 | Q105: 623 | R105: 774 | S105: 759 | T105: 677 | U105: 670 | V105: 585 | W105: 680 | X105: 741 | Y105: 551 | Z105: 765 | AA105: 609 | AB105: 760 | AC105: 7986 | AD105: 8194
A106: Region 3 | B106: Product 9 | C106: Customer 8 | D106: Person 8 | E106: 856 | F106: 662 | G106: 742 | H106: 799 | I106: 636 | J106: 865 | K106: 621 | L106: 653 | M106: 731 | N106: 756 | O106: 708 | P106: 614 | Q106: 728 | R106: 807 | S106: 633 | T106: 841 | U106: 767 | V106: 637 | W106: 696 | X106: 633 | Y106: 706 | Z106: 687 | AA106: 754 | AB106: 736 | AC106: 8643 | AD106: 8625
A107: Region 3 | B107: Product 9 | C107: Customer 9 | D107: Person 9 | E107: 750 | F107: 735 | G107: 716 | H107: 883 | I107: 635 | J107: 798 | K107: 779 | L107: 612 | M107: 695 | N107: 659 | O107: 640 | P107: 630 | Q107: 641 | R107: 761 | S107: 624 | T107: 605 | U107: 651 | V107: 883 | W107: 870 | X107: 890 | Y107: 803 | Z107: 888 | AA107: 773 | AB107: 838 | AC107: 8532 | AD107: 9227
A108: Region 3 | B108: Product 9 | C108: Customer 10 | D108: Person 10 | E108: 615 | F108: 786 | G108: 686 | H108: 603 | I108: 725 | J108: 667 | K108: 658 | L108: 646 | M108: 643 | N108: 636 | O108: 681 | P108: 649 | Q108: 774 | R108: 638 | S108: 786 | T108: 641 | U108: 766 | V108: 778 | W108: 646 | X108: 649 | Y108: 646 | Z108: 717 | AA108: 632 | AB108: 788 | AC108: 7995 | AD108: 8461
A109: Region 3 | B109: Product 9 | C109: Customer 11 | D109: Person 11 | E109: 907 | F109: 935 | G109: 1026 | H109: 1002 | I109: 1248 | J109: 1339 | K109: 1183 | L109: 1337 | M109: 1189 | N109: 1393 | O109: 1337 | P109: 1064 | Q109: 904 | R109: 1076 | S109: 834 | T109: 1142 | U109: 1169 | V109: 1115 | W109: 1354 | X109: 1316 | Y109: 1268 | Z109: 1283 | AA109: 1393 | AB109: 958 | AC109: 13960 | AD109: 13812
A110: Region 3 | B110: Product 9 | C110: Customer 12 | D110: Person 12 | E110: 751 | F110: 560 | G110: 567 | H110: 605 | I110: 587 | J110: 550 | K110: 753 | L110: 737 | M110: 783 | N110: 637 | O110: 644 | P110: 687 | Q110: 709 | R110: 748 | S110: 768 | T110: 557 | U110: 609 | V110: 671 | W110: 736 | X110: 609 | Y110: 658 | Z110: 768 | AA110: 560 | AB110: 700 | AC110: 7861 | AD110: 8093
A111: Region 4 | B111: Product 10 | C111: Customer 1 | D111: Person 1 | E111: 697 | F111: 725 | G111: 800 | H111: 658 | I111: 819 | J111: 761 | K111: 661 | L111: 700 | M111: 819 | N111: 796 | O111: 894 | P111: 705 | Q111: 893 | R111: 672 | S111: 663 | T111: 854 | U111: 847 | V111: 624 | W111: 823 | X111: 736 | Y111: 725 | Z111: 824 | AA111: 659 | AB111: 877 | AC111: 9035 | AD111: 9197
A112: Region 4 | B112: Product 10 | C112: Customer 2 | D112: Person 2 | E112: 733 | F112: 808 | G112: 765 | H112: 898 | I112: 611 | J112: 816 | K112: 848 | L112: 615 | M112: 628 | N112: 717 | O112: 891 | P112: 762 | Q112: 884 | R112: 654 | S112: 800 | T112: 875 | U112: 690 | V112: 751 | W112: 693 | X112: 874 | Y112: 860 | Z112: 769 | AA112: 702 | AB112: 767 | AC112: 9092 | AD112: 9319
A113: Region 4 | B113: Product 10 | C113: Customer 3 | D113: Person 3 | E113: 645 | F113: 799 | G113: 669 | H113: 749 | I113: 688 | J113: 800 | K113: 669 | L113: 686 | M113: 624 | N113: 666 | O113: 636 | P113: 729 | Q113: 675 | R113: 789 | S113: 754 | T113: 722 | U113: 621 | V113: 799 | W113: 625 | X113: 651 | Y113: 771 | Z113: 711 | AA113: 721 | AB113: 651 | AC113: 8360 | AD113: 8490
A114: Region 4 | B114: Product 10 | C114: Customer 4 | D114: Person 4 | E114: 844 | F114: 1170 | G114: 1292 | H114: 1009 | I114: 1103 | J114: 919 | K114: 1377 | L114: 1352 | M114: 1277 | N114: 899 | O114: 1131 | P114: 827 | Q114: 1375 | R114: 882 | S114: 812 | T114: 1274 | U114: 1172 | V114: 1170 | W114: 879 | X114: 1274 | Y114: 1208 | Z114: 943 | AA114: 1187 | AB114: 1253 | AC114: 13200 | AD114: 13429
A115: Region 4 | B115: Product 10 | C115: Customer 5 | D115: Person 5 | E115: 675 | F115: 649 | G115: 717 | H115: 641 | I115: 610 | J115: 715 | K115: 661 | L115: 764 | M115: 703 | N115: 614 | O115: 561 | P115: 694 | Q115: 738 | R115: 703 | S115: 728 | T115: 565 | U115: 737 | V115: 706 | W115: 699 | X115: 788 | Y115: 736 | Z115: 791 | AA115: 762 | AB115: 696 | AC115: 8004 | AD115: 8649
A116: Region 4 | B116: Product 10 | C116: Customer 6 | D116: Person 6 | E116: 661 | F116: 804 | G116: 658 | H116: 603 | I116: 631 | J116: 639 | K116: 635 | L116: 662 | M116: 627 | N116: 679 | O116: 709 | P116: 844 | Q116: 766 | R116: 819 | S116: 832 | T116: 603 | U116: 645 | V116: 657 | W116: 688 | X116: 750 | Y116: 758 | Z116: 650 | AA116: 899 | AB116: 793 | AC116: 8152 | AD116: 8860
A117: Region 4 | B117: Product 10 | C117: Customer 7 | D117: Person 7 | E117: 618 | F117: 672 | G117: 876 | H117: 900 | I117: 799 | J117: 742 | K117: 624 | L117: 898 | M117: 623 | N117: 883 | O117: 679 | P117: 617 | Q117: 766 | R117: 684 | S117: 768 | T117: 669 | U117: 749 | V117: 874 | W117: 805 | X117: 747 | Y117: 789 | Z117: 781 | AA117: 768 | AB117: 778 | AC117: 8931 | AD117: 9178
A118: Region 4 | B118: Product 10 | C118: Customer 8 | D118: Person 8 | E118: 619 | F118: 686 | G118: 692 | H118: 771 | I118: 672 | J118: 675 | K118: 769 | L118: 640 | M118: 721 | N118: 641 | O118: 678 | P118: 698 | Q118: 781 | R118: 648 | S118: 665 | T118: 748 | U118: 743 | V118: 653 | W118: 770 | X118: 640 | Y118: 730 | Z118: 789 | AA118: 768 | AB118: 617 | AC118: 8262 | AD118: 8552
A119: Region 4 | B119: Product 10 | C119: Customer 9 | D119: Person 9 | E119: 1363 | F119: 1185 | G119: 1078 | H119: 1197 | I119: 897 | J119: 1218 | K119: 1070 | L119: 1145 | M119: 1290 | N119: 1299 | O119: 1154 | P119: 1375 | Q119: 1034 | R119: 1215 | S119: 999 | T119: 1392 | U119: 1248 | V119: 1284 | W119: 1084 | X119: 1036 | Y119: 1248 | Z119: 986 | AA119: 1399 | AB119: 1161 | AC119: 14271 | AD119: 14086
A120: Region 4 | B120: Product 10 | C120: Customer 10 | D120: Person 10 | E120: 638 | F120: 736 | G120: 607 | H120: 652 | I120: 694 | J120: 607 | K120: 670 | L120: 652 | M120: 774 | N120: 552 | O120: 755 | P120: 622 | Q120: 665 | R120: 559 | S120: 583 | T120: 736 | U120: 599 | V120: 714 | W120: 756 | X120: 566 | Y120: 693 | Z120: 621 | AA120: 575 | AB120: 797 | AC120: 7959 | AD120: 7864
A121: Region 4 | B121: Product 10 | C121: Customer 11 | D121: Person 11 | E121: 616 | F121: 778 | G121: 650 | H121: 655 | I121: 737 | J121: 786 | K121: 745 | L121: 865 | M121: 604 | N121: 886 | O121: 639 | P121: 611 | Q121: 770 | R121: 684 | S121: 714 | T121: 603 | U121: 724 | V121: 705 | W121: 751 | X121: 874 | Y121: 891 | Z121: 604 | AA121: 890 | AB121: 742 | AC121: 8572 | AD121: 8952
A122: Region 4 | B122: Product 10 | C122: Customer 12 | D122: Person 12 | E122: 899 | F122: 712 | G122: 668 | H122: 683 | I122: 851 | J122: 697 | K122: 692 | L122: 796 | M122: 735 | N122: 741 | O122: 651 | P122: 851 | Q122: 810 | R122: 659 | S122: 861 | T122: 742 | U122: 680 | V122: 664 | W122: 706 | X122: 716 | Y122: 602 | Z122: 634 | AA122: 852 | AB122: 853 | AC122: 8976 | AD122: 8779
A123: Region 4 | B123: Product 11 | C123: Customer 1 | D123: Person 1 | E123: 671 | F123: 721 | G123: 658 | H123: 729 | I123: 627 | J123: 632 | K123: 693 | L123: 650 | M123: 778 | N123: 649 | O123: 602 | P123: 666 | Q123: 787 | R123: 760 | S123: 761 | T123: 755 | U123: 717 | V123: 602 | W123: 746 | X123: 701 | Y123: 754 | Z123: 640 | AA123: 638 | AB123: 693 | AC123: 8076 | AD123: 8554
A124: Region 4 | B124: Product 11 | C124: Customer 2 | D124: Person 2 | E124: 1232 | F124: 1311 | G124: 1225 | H124: 1087 | I124: 1128 | J124: 1320 | K124: 943 | L124: 1289 | M124: 1186 | N124: 1328 | O124: 928 | P124: 1345 | Q124: 1167 | R124: 812 | S124: 801 | T124: 1374 | U124: 949 | V124: 980 | W124: 1108 | X124: 1058 | Y124: 1175 | Z124: 1201 | AA124: 1034 | AB124: 1376 | AC124: 14322 | AD124: 13035
A125: Region 4 | B125: Product 11 | C125: Customer 3 | D125: Person 3 | E125: 788 | F125: 586 | G125: 639 | H125: 789 | I125: 778 | J125: 632 | K125: 774 | L125: 681 | M125: 614 | N125: 635 | O125: 561 | P125: 581 | Q125: 659 | R125: 737 | S125: 745 | T125: 564 | U125: 749 | V125: 764 | W125: 793 | X125: 684 | Y125: 789 | Z125: 718 | AA125: 551 | AB125: 742 | AC125: 8058 | AD125: 8495
A126: Region 4 | B126: Product 11 | C126: Customer 4 | D126: Person 4 | E126: 617 | F126: 783 | G126: 802 | H126: 757 | I126: 888 | J126: 738 | K126: 840 | L126: 691 | M126: 653 | N126: 809 | O126: 611 | P126: 671 | Q126: 616 | R126: 798 | S126: 768 | T126: 657 | U126: 758 | V126: 776 | W126: 896 | X126: 680 | Y126: 702 | Z126: 842 | AA126: 897 | AB126: 606 | AC126: 8860 | AD126: 8996
A127: Region 4 | B127: Product 11 | C127: Customer 5 | D127: Person 5 | E127: 630 | F127: 769 | G127: 882 | H127: 600 | I127: 764 | J127: 646 | K127: 900 | L127: 797 | M127: 708 | N127: 857 | O127: 789 | P127: 862 | Q127: 772 | R127: 665 | S127: 633 | T127: 779 | U127: 796 | V127: 615 | W127: 723 | X127: 649 | Y127: 888 | Z127: 692 | AA127: 631 | AB127: 635 | AC127: 9204 | AD127: 8478
A128: Region 4 | B128: Product 11 | C128: Customer 6 | D128: Person 6 | E128: 631 | F128: 796 | G128: 639 | H128: 606 | I128: 759 | J128: 781 | K128: 744 | L128: 692 | M128: 682 | N128: 620 | O128: 746 | P128: 696 | Q128: 636 | R128: 695 | S128: 614 | T128: 783 | U128: 630 | V128: 629 | W128: 703 | X128: 795 | Y128: 714 | Z128: 769 | AA128: 795 | AB128: 632 | AC128: 8392 | AD128: 8395
A129: Region 4 | B129: Product 11 | C129: Customer 7 | D129: Person 7 | E129: 1079 | F129: 1033 | G129: 931 | H129: 1336 | I129: 1208 | J129: 1345 | K129: 903 | L129: 1330 | M129: 976 | N129: 1104 | O129: 968 | P129: 901 | Q129: 1237 | R129: 1252 | S129: 1390 | T129: 885 | U129: 1228 | V129: 998 | W129: 888 | X129: 995 | Y129: 1189 | Z129: 1328 | AA129: 1131 | AB129: 1260 | AC129: 13114 | AD129: 13781
A130: Region 4 | B130: Product 11 | C130: Customer 8 | D130: Person 8 | E130: 782 | F130: 638 | G130: 762 | H130: 710 | I130: 749 | J130: 643 | K130: 622 | L130: 660 | M130: 586 | N130: 568 | O130: 777 | P130: 688 | Q130: 638 | R130: 712 | S130: 583 | T130: 578 | U130: 575 | V130: 726 | W130: 603 | X130: 575 | Y130: 634 | Z130: 579 | AA130: 696 | AB130: 746 | AC130: 8185 | AD130: 7645
A131: Region 4 | B131: Product 11 | C131: Customer 9 | D131: Person 9 | E131: 627 | F131: 839 | G131: 729 | H131: 701 | I131: 691 | J131: 646 | K131: 804 | L131: 663 | M131: 861 | N131: 793 | O131: 706 | P131: 820 | Q131: 845 | R131: 884 | S131: 736 | T131: 853 | U131: 621 | V131: 887 | W131: 759 | X131: 709 | Y131: 817 | Z131: 702 | AA131: 637 | AB131: 684 | AC131: 8880 | AD131: 9134
A132: Region 4 | B132: Product 11 | C132: Customer 10 | D132: Person 10 | E132: 625 | F132: 706 | G132: 782 | H132: 896 | I132: 670 | J132: 631 | K132: 847 | L132: 898 | M132: 628 | N132: 854 | O132: 617 | P132: 900 | Q132: 890 | R132: 704 | S132: 814 | T132: 720 | U132: 900 | V132: 814 | W132: 811 | X132: 797 | Y132: 837 | Z132: 858 | AA132: 728 | AB132: 706 | AC132: =SUM(E132:P132) -> 9054 | AD132: =SUM(Q132:AB132) -> 9579
A133: Region 4 | B133: Product 11 | C133: Customer 11 | D133: Person 11 | E133: 681 | F133: 793 | G133: 757 | H133: 666 | I133: 737 | J133: 654 | K133: 638 | L133: 610 | M133: 647 | N133: 770 | O133: 770 | P133: 797 | Q133: 669 | R133: 601 | S133: 745 | T133: 630 | U133: 663 | V133: 768 | W133: 767 | X133: 719 | Y133: 748 | Z133: 726 | AA133: 770 | AB133: 675 | AC133: 8520 | AD133: 8481
A134: Region 4 | B134: Product 11 | C134: Customer 12 | D134: Person 12 | E134: 950 | F134: 1060 | G134: 1276 | H134: 1073 | I134: 1238 | J134: 802 | K134: 1207 | L134: 1115 | M134: 1043 | N134: 1170 | O134: 1236 | P134: 1318 | Q134: 1204 | R134: 1212 | S134: 1350 | T134: 1276 | U134: 939 | V134: 1081 | W134: 1006 | X134: 981 | Y134: 847 | Z134: 1120 | AA134: 1332 | AB134: 1029 | AC134: 13488 | AD134: 13377
A135: Region 4 | B135: Product 12 | C135: Customer 1 | D135: Person 1 | E135: 620 | F135: 562 | G135: 647 | H135: 598 | I135: 643 | J135: 598 | K135: 695 | L135: 636 | M135: 781 | N135: 566 | O135: 734 | P135: 727 | Q135: 800 | R135: 780 | S135: 739 | T135: 685 | U135: 555 | V135: 644 | W135: 769 | X135: 759 | Y135: 688 | Z135: 657 | AA135: 651 | AB135: 707 | AC135: 7807 | AD135: 8434
A136: Region 4 | B136: Product 12 | C136: Customer 2 | D136: Person 2 | E136: 856 | F136: 724 | G136: 765 | H136: 883 | I136: 892 | J136: 761 | K136: 857 | L136: 796 | M136: 613 | N136: 723 | O136: 716 | P136: 842 | Q136: 802 | R136: 616 | S136: 839 | T136: 661 | U136: 834 | V136: 698 | W136: 625 | X136: 655 | Y136: 624 | Z136: 659 | AA136: 775 | AB136: 689 | AC136: 9428 | AD136: 8477
A137: Region 4 | B137: Product 12 | C137: Customer 3 | D137: Person 3 | E137: 662 | F137: 794 | G137: 893 | H137: 667 | I137: 605 | J137: 812 | K137: 604 | L137: 880 | M137: 898 | N137: 788 | O137: 886 | P137: 755 | Q137: 609 | R137: 848 | S137: 602 | T137: 857 | U137: 686 | V137: 673 | W137: 655 | X137: 750 | Y137: 752 | Z137: 794 | AA137: 734 | AB137: 661 | AC137: 9244 | AD137: 8621
A138: Region 4 | B138: Product 12 | C138: Customer 4 | D138: Person 4 | E138: 719 | F138: 787 | G138: 609 | H138: 634 | I138: 700 | J138: 725 | K138: 759 | L138: 640 | M138: 745 | N138: 615 | O138: 773 | P138: 638 | Q138: 709 | R138: 764 | S138: 644 | T138: 761 | U138: 614 | V138: 752 | W138: 761 | X138: 720 | Y138: 781 | Z138: 692 | AA138: 705 | AB138: 676 | AC138: 8344 | AD138: 8579
A139: Region 4 | B139: Product 12 | C139: Customer 5 | D139: Person 5 | E139: 1239 | F139: 1385 | G139: 823 | H139: 1069 | I139: 1336 | J139: 857 | K139: 869 | L139: 901 | M139: 812 | N139: 1352 | O139: 1084 | P139: 1081 | Q139: 1323 | R139: 1261 | S139: 1334 | T139: 1372 | U139: 949 | V139: 1165 | W139: 962 | X139: 1211 | Y139: 1304 | Z139: 956 | AA139: 1214 | AB139: 1097 | AC139: 12808 | AD139: 14148
A140: Region 4 | B140: Product 12 | C140: Customer 6 | D140: Person 6 | E140: 665 | F140: 781 | G140: 580 | H140: 798 | I140: 618 | J140: 685 | K140: 571 | L140: 672 | M140: 730 | N140: 588 | O140: 610 | P140: 568 | Q140: 712 | R140: 746 | S140: 602 | T140: 599 | U140: 661 | V140: 587 | W140: 586 | X140: 693 | Y140: 622 | Z140: 681 | AA140: 614 | AB140: 706 | AC140: 7866 | AD140: 7809
A141: Region 4 | B141: Product 12 | C141: Customer 7 | D141: Person 7 | E141: 688 | F141: 716 | G141: 797 | H141: 618 | I141: 628 | J141: 745 | K141: 731 | L141: 773 | M141: 724 | N141: 741 | O141: 656 | P141: 611 | Q141: 750 | R141: 755 | S141: 890 | T141: 776 | U141: 726 | V141: 849 | W141: 627 | X141: 679 | Y141: 781 | Z141: 875 | AA141: 803 | AB141: 898 | AC141: 8428 | AD141: 9409
A142: Region 4 | B142: Product 12 | C142: Customer 8 | D142: Person 8 | E142: 833 | F142: 736 | G142: 643 | H142: 887 | I142: 725 | J142: 702 | K142: 653 | L142: 682 | M142: 753 | N142: 712 | O142: 800 | P142: 668 | Q142: 856 | R142: 666 | S142: 692 | T142: 770 | U142: 672 | V142: 896 | W142: 674 | X142: 817 | Y142: 898 | Z142: 769 | AA142: 674 | AB142: 638 | AC142: 8794 | AD142: 9022
A143: Region 4 | B143: Product 12 | C143: Customer 9 | D143: Person 9 | E143: 749 | F143: 683 | G143: 739 | H143: 714 | I143: 742 | J143: 767 | K143: 676 | L143: 670 | M143: 629 | N143: 683 | O143: 625 | P143: 616 | Q143: 646 | R143: 625 | S143: 717 | T143: 604 | U143: 758 | V143: 604 | W143: 715 | X143: 647 | Y143: 753 | Z143: 704 | AA143: 764 | AB143: 721 | AC143: 8293 | AD143: 8258
A144: Region 4 | B144: Product 12 | C144: Customer 10 | D144: Person 10 | E144: 819 | F144: 870 | G144: 817 | H144: 1178 | I144: 917 | J144: 941 | K144: 1017 | L144: 1118 | M144: 1316 | N144: 1035 | O144: 1045 | P144: 1026 | Q144: 1348 | R144: 1302 | S144: 1119 | T144: 1181 | U144: 1210 | V144: 1157 | W144: 902 | X144: 1311 | Y144: 1097 | Z144: 1199 | AA144: 1034 | AB144: 1118 | AC144: 12099 | AD144: 13978
A145: Region 4 | B145: Product 12 | C145: Customer 11 | D145: Person 11 | E145: 653 | F145: 727 | G145: 768 | H145: 756 | I145: 595 | J145: 577 | K145: 796 | L145: 740 | M145: 551 | N145: 776 | O145: 601 | P145: 651 | Q145: 637 | R145: 561 | S145: 608 | T145: 658 | U145: 621 | V145: 787 | W145: 702 | X145: 582 | Y145: 611 | Z145: 698 | AA145: 694 | AB145: 695 | AC145: 8191 | AD145: 7854
A146: Region 4 | B146: Product 12 | C146: Customer 12 | D146: Person 12 | E146: 727 | F146: 696 | G146: 821 | H146: 629 | I146: 715 | J146: 847 | K146: 760 | L146: 759 | M146: 879 | N146: 697 | O146: 690 | P146: 844 | Q146: 668 | R146: 624 | S146: 657 | T146: 834 | U146: 795 | V146: 730 | W146: 896 | X146: 790 | Y146: 648 | Z146: 782 | AA146: 777 | AB146: 845 | AC146: 9064 | AD146: 9046

Sheet Controls (hidden)
B2: Region | C2: Product | D2: Customer Type | E2: Sales Person - Name | G2: Region | H2: Product 1 | I2: Product 2 | J2: Product 3 | K2: Product 4 | L2: Product 5 | M2: Product 6 | N2: Product 7 | O2: Product 8 | P2: Product 9 | Q2: Product 10 | R2: Product 11 | S2: Product 12
B3: Region 1 | C3: Product 1 | D3: Customer 1 | E3: Person 1 | G3: Region 1 | H3: =SUMIFS(INDIRECT(Dashboard!$G$16),Region,Controls!$G3,Product,Controls!H$2) -> 9701 | I3: =SUMIFS(INDIRECT(Dashboard!$G$16),Region,Controls!$G3,Product,Controls!I$2) -> 9774 | J3: =SUMIFS(INDIRECT(Dashboard!$G$16),Region,Controls!$G3,Product,Controls!J$2) -> 9508 | K3: =SUMIFS(INDIRECT(Dashboard!$G$16),Region,Controls!$G3,Product,Controls!K$2) -> 0 | L3: =SUMIFS(INDIRECT(Dashboard!$G$16),Region,Controls!$G3,Product,Controls!L$2) -> 0 | M3: =SUMIFS(INDIRECT(Dashboard!$G$16),Region,Controls!$G3,Product,Controls!M$2) -> 0 | N3: =SUMIFS(INDIRECT(Dashboard!$G$16),Region,Controls!$G3,Product,Controls!N$2) -> 0 | O3: =SUMIFS(INDIRECT(Dashboard!$G$16),Region,Controls!$G3,Product,Controls!O$2) -> 0 | P3: =SUMIFS(INDIRECT(Dashboard!$G$16),Region,Controls!$G3,Product,Controls!P$2) -> 0 | Q3: =SUMIFS(INDIRECT(Dashboard!$G$16),Region,Controls!$G3,Product,Controls!Q$2) -> 0 | R3: =SUMIFS(INDIRECT(Dashboard!$G$16),Region,Controls!$G3,Product,Controls!R$2) -> 0 | S3: =SUMIFS(INDIRECT(Dashboard!$G$16),Region,Controls!$G3,Product,Controls!S$2) -> 0
B4: Region 2 | C4: Product 2 | D4: Customer 2 | E4: Person 2 | G4: Region 2 | H4: =SUMIFS(INDIRECT(Dashboard!$G$16),Region,Controls!$G4,Product,Controls!H$2) -> 0 | I4: =SUMIFS(INDIRECT(Dashboard!$G$16),Region,Controls!$G4,Product,Controls!I$2) -> 0 | J4: =SUMIFS(INDIRECT(Dashboard!$G$16),Region,Controls!$G4,Product,Controls!J$2) -> 0 | K4: =SUMIFS(INDIRECT(Dashboard!$G$16),Region,Controls!$G4,Product,Controls!K$2) -> 9701 | L4: =SUMIFS(INDIRECT(Dashboard!$G$16),Region,Controls!$G4,Product,Controls!L$2) -> 9616 | M4: =SUMIFS(INDIRECT(Dashboard!$G$16),Region,Controls!$G4,Product,Controls!M$2) -> 9856 | N4: =SUMIFS(INDIRECT(Dashboard!$G$16),Region,Controls!$G4,Product,Controls!N$2) -> 0 | O4: =SUMIFS(INDIRECT(Dashboard!$G$16),Region,Controls!$G4,Product,Controls!O$2) -> 0 | P4: =SUMIFS(INDIRECT(Dashboard!$G$16),Region,Controls!$G4,Product,Controls!P$2) -> 0 | Q4: =SUMIFS(INDIRECT(Dashboard!$G$16),Region,Controls!$G4,Product,Controls!Q$2) -> 0 | R4: =SUMIFS(INDIRECT(Dashboard!$G$16),Region,Controls!$G4,Product,Controls!R$2) -> 0 | S4: =SUMIFS(INDIRECT(Dashboard!$G$16),Region,Controls!$G4,Product,Controls!S$2) -> 0
B5: Region 3 | C5: Product 3 | D5: Customer 3 | E5: Person 3 | G5: Region 3 | H5: =SUMIFS(INDIRECT(Dashboard!$G$16),Region,Controls!$G5,Product,Controls!H$2) -> 0 | I5: =SUMIFS(INDIRECT(Dashboard!$G$16),Region,Controls!$G5,Product,Controls!I$2) -> 0 | J5: =SUMIFS(INDIRECT(Dashboard!$G$16),Region,Controls!$G5,Product,Controls!J$2) -> 0 | K5: =SUMIFS(INDIRECT(Dashboard!$G$16),Region,Controls!$G5,Product,Controls!K$2) -> 0 | L5: =SUMIFS(INDIRECT(Dashboard!$G$16),Region,Controls!$G5,Product,Controls!L$2) -> 0 | M5: =SUMIFS(INDIRECT(Dashboard!$G$16),Region,Controls!$G5,Product,Controls!M$2) -> 0 | N5: =SUMIFS(INDIRECT(Dashboard!$G$16),Region,Controls!$G5,Product,Controls!N$2) -> 9517 | O5: =SUMIFS(INDIRECT(Dashboard!$G$16),Region,Controls!$G5,Product,Controls!O$2) -> 9116 | P5: =SUMIFS(INDIRECT(Dashboard!$G$16),Region,Controls!$G5,Product,Controls!P$2) -> 10243 | Q5: =SUMIFS(INDIRECT(Dashboard!$G$16),Region,Controls!$G5,Product,Controls!Q$2) -> 0 | R5: =SUMIFS(INDIRECT(Dashboard!$G$16),Region,Controls!$G5,Product,Controls!R$2) -> 0 | S5: =SUMIFS(INDIRECT(Dashboard!$G$16),Region,Controls!$G5,Product,Controls!S$2) -> 0
B6: Region 4 | C6: Product 4 | D6: Customer 4 | E6: Person 4 | G6: Region 4 | H6: =SUMIFS(INDIRECT(Dashboard!$G$16),Region,Controls!$G6,Product,Controls!H$2) -> 0 | I6: =SUMIFS(INDIRECT(Dashboard!$G$16),Region,Controls!$G6,Product,Controls!I$2) -> 0 | J6: =SUMIFS(INDIRECT(Dashboard!$G$16),Region,Controls!$G6,Product,Controls!J$2) -> 0 | K6: =SUMIFS(INDIRECT(Dashboard!$G$16),Region,Controls!$G6,Product,Controls!K$2) -> 0 | L6: =SUMIFS(INDIRECT(Dashboard!$G$16),Region,Controls!$G6,Product,Controls!L$2) -> 0 | M6: =SUMIFS(INDIRECT(Dashboard!$G$16),Region,Controls!$G6,Product,Controls!M$2) -> 0 | N6: =SUMIFS(INDIRECT(Dashboard!$G$16),Region,Controls!$G6,Product,Controls!N$2) -> 0 | O6: =SUMIFS(INDIRECT(Dashboard!$G$16),Region,Controls!$G6,Product,Controls!O$2) -> 0 | P6: =SUMIFS(INDIRECT(Dashboard!$G$16),Region,Controls!$G6,Product,Controls!P$2) -> 0 | Q6: =SUMIFS(INDIRECT(Dashboard!$G$16),Region,Controls!$G6,Product,Controls!Q$2) -> 9425 | R6: =SUMIFS(INDIRECT(Dashboard!$G$16),Region,Controls!$G6,Product,Controls!R$2) -> 9362 | S6: =SUMIFS(INDIRECT(Dashboard!$G$16),Region,Controls!$G6,Product,Controls!S$2) -> 9431
C7: Product 5 | D7: Customer 5 | E7: Person 5
C8: Product 6 | D8: Customer 6 | E8: Person 6 | G8: Region | H8: Product 1 | I8: Product 2 | J8: Product 3 | K8: Product 4 | L8: Product 5 | M8: Product 6 | N8: Product 7 | O8: Product 8 | P8: Product 9 | Q8: Product 10 | R8: Product 11 | S8: Product 12
C9: Product 7 | D9: Customer 7 | E9: Person 7 | G9: Region 1 | H9: =SUMIFS(INDIRECT(Dashboard!$H$16),Region,Controls!$G9,Product,Controls!H$8) -> 9138 | I9: =SUMIFS(INDIRECT(Dashboard!$H$16),Region,Controls!$G9,Product,Controls!I$8) -> 9424 | J9: =SUMIFS(INDIRECT(Dashboard!$H$16),Region,Controls!$G9,Product,Controls!J$8) -> 9445 | K9: =SUMIFS(INDIRECT(Dashboard!$H$16),Region,Controls!$G9,Product,Controls!K$8) -> 0 | L9: =SUMIFS(INDIRECT(Dashboard!$H$16),Region,Controls!$G9,Product,Controls!L$8) -> 0 | M9: =SUMIFS(INDIRECT(Dashboard!$H$16),Region,Controls!$G9,Product,Controls!M$8) -> 0 | N9: =SUMIFS(INDIRECT(Dashboard!$H$16),Region,Controls!$G9,Product,Controls!N$8) -> 0 | O9: =SUMIFS(INDIRECT(Dashboard!$H$16),Region,Controls!$G9,Product,Controls!O$8) -> 0 | P9: =SUMIFS(INDIRECT(Dashboard!$H$16),Region,Controls!$G9,Product,Controls!P$8) -> 0 | Q9: =SUMIFS(INDIRECT(Dashboard!$H$16),Region,Controls!$G9,Product,Controls!Q$8) -> 0 | R9: =SUMIFS(INDIRECT(Dashboard!$H$16),Region,Controls!$G9,Product,Controls!R$8) -> 0 | S9: =SUMIFS(INDIRECT(Dashboard!$H$16),Region,Controls!$G9,Product,Controls!S$8) -> 0
C10: Product 8 | D10: Customer 8 | E10: Person 8 | G10: Region 2 | H10: =SUMIFS(INDIRECT(Dashboard!$H$16),Region,Controls!$G10,Product,Controls!H$8) -> 0 | I10: =SUMIFS(INDIRECT(Dashboard!$H$16),Region,Controls!$G10,Product,Controls!I$8) -> 0 | J10: =SUMIFS(INDIRECT(Dashboard!$H$16),Region,Controls!$G10,Product,Controls!J$8) -> 0 | K10: =SUMIFS(INDIRECT(Dashboard!$H$16),Region,Controls!$G10,Product,Controls!K$8) -> 9697 | L10: =SUMIFS(INDIRECT(Dashboard!$H$16),Region,Controls!$G10,Product,Controls!L$8) -> 9210 | M10: =SUMIFS(INDIRECT(Dashboard!$H$16),Region,Controls!$G10,Product,Controls!M$8) -> 9542 | N10: =SUMIFS(INDIRECT(Dashboard!$H$16),Region,Controls!$G10,Product,Controls!N$8) -> 0 | O10: =SUMIFS(INDIRECT(Dashboard!$H$16),Region,Controls!$G10,Product,Controls!O$8) -> 0 | P10: =SUMIFS(INDIRECT(Dashboard!$H$16),Region,Controls!$G10,Product,Controls!P$8) -> 0 | Q10: =SUMIFS(INDIRECT(Dashboard!$H$16),Region,Controls!$G10,Product,Controls!Q$8) -> 0 | R10: =SUMIFS(INDIRECT(Dashboard!$H$16),Region,Controls!$G10,Product,Controls!R$8) -> 0 | S10: =SUMIFS(INDIRECT(Dashboard!$H$16),Region,Controls!$G10,Product,Controls!S$8) -> 0
C11: Product 9 | D11: Customer 9 | E11: Person 9 | G11: Region 3 | H11: =SUMIFS(INDIRECT(Dashboard!$H$16),Region,Controls!$G11,Product,Controls!H$8) -> 0 | I11: =SUMIFS(INDIRECT(Dashboard!$H$16),Region,Controls!$G11,Product,Controls!I$8) -> 0 | J11: =SUMIFS(INDIRECT(Dashboard!$H$16),Region,Controls!$G11,Product,Controls!J$8) -> 0 | K11: =SUMIFS(INDIRECT(Dashboard!$H$16),Region,Controls!$G11,Product,Controls!K$8) -> 0 | L11: =SUMIFS(INDIRECT(Dashboard!$H$16),Region,Controls!$G11,Product,Controls!L$8) -> 0 | M11: =SUMIFS(INDIRECT(Dashboard!$H$16),Region,Controls!$G11,Product,Controls!M$8) -> 0 | N11: =SUMIFS(INDIRECT(Dashboard!$H$16),Region,Controls!$G11,Product,Controls!N$8) -> 9992 | O11: =SUMIFS(INDIRECT(Dashboard!$H$16),Region,Controls!$G11,Product,Controls!O$8) -> 9010 | P11: =SUMIFS(INDIRECT(Dashboard!$H$16),Region,Controls!$G11,Product,Controls!P$8) -> 9736 | Q11: =SUMIFS(INDIRECT(Dashboard!$H$16),Region,Controls!$G11,Product,Controls!Q$8) -> 0 | R11: =SUMIFS(INDIRECT(Dashboard!$H$16),Region,Controls!$G11,Product,Controls!R$8) -> 0 | S11: =SUMIFS(INDIRECT(Dashboard!$H$16),Region,Controls!$G11,Product,Controls!S$8) -> 0
C12: Product 10 | D12: Customer 10 | E12: Person 10 | G12: Region 4 | H12: =SUMIFS(INDIRECT(Dashboard!$H$16),Region,Controls!$G12,Product,Controls!H$8) -> 0 | I12: =SUMIFS(INDIRECT(Dashboard!$H$16),Region,Controls!$G12,Product,Controls!I$8) -> 0 | J12: =SUMIFS(INDIRECT(Dashboard!$H$16),Region,Controls!$G12,Product,Controls!J$8) -> 0 | K12: =SUMIFS(INDIRECT(Dashboard!$H$16),Region,Controls!$G12,Product,Controls!K$8) -> 0 | L12: =SUMIFS(INDIRECT(Dashboard!$H$16),Region,Controls!$G12,Product,Controls!L$8) -> 0 | M12: =SUMIFS(INDIRECT(Dashboard!$H$16),Region,Controls!$G12,Product,Controls!M$8) -> 0 | N12: =SUMIFS(INDIRECT(Dashboard!$H$16),Region,Controls!$G12,Product,Controls!N$8) -> 0 | O12: =SUMIFS(INDIRECT(Dashboard!$H$16),Region,Controls!$G12,Product,Controls!O$8) -> 0 | P12: =SUMIFS(INDIRECT(Dashboard!$H$16),Region,Controls!$G12,Product,Controls!P$8) -> 0 | Q12: =SUMIFS(INDIRECT(Dashboard!$H$16),Region,Controls!$G12,Product,Controls!Q$8) -> 10011 | R12: =SUMIFS(INDIRECT(Dashboard!$H$16),Region,Controls!$G12,Product,Controls!R$8) -> 10094 | S12: =SUMIFS(INDIRECT(Dashboard!$H$16),Region,Controls!$G12,Product,Controls!S$8) -> 9559
C13: Product 11 | D13: Customer 11 | E13: Person 11 | I13: =IF(G14=1,2,IF(G14=2,5,IF(G14=3,8,11))) -> 5 | J13: =I13+1 -> 6 | K13: =J13+1 -> 7
C14: Product 12 | D14: Customer 12 | E14: Person 12 | G14: 2 | H14: =CHOOSE(G14,G9,G10,G11,G12) -> Region 2 | I14: =IF($G$14=1,H8,IF($G$14=2,K8,IF($G$14=3,N8,Q8))) -> Product 4 | J14: =IF($G$14=1,I8,IF($G$14=2,L8,IF($G$14=3,O8,R8))) -> Product 5 | K14: =IF($G$14=1,J8,IF($G$14=2,M8,IF($G$14=3,P8,S8))) -> Product 6
I15: =IF($G$14=1,VLOOKUP($H$14,$G$3:$S$6,I$13,FALSE),IF($G$14=2,VLOOKUP($H$14,$G$3:$S$6,I$13,FALSE),IF($G$14=3,VLOOKUP($H$14,$G$3:$S$6,I13,FALSE),VLOOKUP($H$14,$G$3:$S$6,I$13,FALSE)))) -> 9701 | J15: =IF($G$14=1,VLOOKUP($H$14,$G$3:$S$6,J$13,FALSE),IF($G$14=2,VLOOKUP($H$14,$G$3:$S$6,J$13,FALSE),IF($G$14=3,VLOOKUP($H$14,$G$3:$S$6,J13,FALSE),VLOOKUP($H$14,$G$3:$S$6,J$13,FALSE)))) -> 9616 | K15: 9856 | L15: 2011
I16: =IF($G$14=1,VLOOKUP($H$14,$G$9:$S$12,I$13,FALSE),IF($G$14=2,VLOOKUP($H$14,$G$9:$S$12,I$13,FALSE),IF($G$14=3,VLOOKUP($H$14,$G$9:$S$12,I$13,FALSE),VLOOKUP($H$14,$G$9:$S$12,I$13,FALSE)))) -> 9697 | J16: =IF($G$14=1,VLOOKUP($H$14,$G$9:$S$12,J$13,FALSE),IF($G$14=2,VLOOKUP($H$14,$G$9:$S$12,J$13,FALSE),IF($G$14=3,VLOOKUP($H$14,$G$9:$S$12,J$13,FALSE),VLOOKUP($H$14,$G$9:$S$12,J$13,FALSE)))) -> 9210 | K16: 9542 | L16: 2012
C17: Jan_11 | D17: Jan_12
C18: Feb_11 | D18: Feb_12
C19: Mar_11 | D19: Mar_12 | G19: Product
C20: Apr_11 | D20: Apr_12 | G20: Product 1
C21: May_11 | D21: May_12 | G21: Product 2
C22: Jun_11 | D22: Jun_12 | G22: Product 3
C23: Jul_11 | D23: Jul_12 | G23: Product 4
C24: Aug_11 | D24: Aug_12 | G24: Product 5
C25: Sep_11 | D25: Sep_12 | G25: Product 6
C26: Oct_11 | D26: Oct_12 | G26: Product 7
C27: Nov_11 | D27: Nov_12 | G27: Product 8
C28: Dec_11 | D28: Dec_12 | G28: Product 9
G29: Product 10
G30: Product 11
G31: Product 12

Sheet Dashboard
Q1: =Pivot!E21 -> Person 4 Index of 99 2012 over 2011
A16: By Region, By Product | D16: Choose month comparison | G16: Sep_11 | H16: Sep_12 | I16: Person comparison for each product - 2011 vs. 2012 | Q16: YoY Index for each person
Q17: SKU | R17: 2011 | S17: 2012 | T17: Rating
Q18: =Pivot!J18 -> Product 1 | R18: =Pivot!K18 -> 8214 | S18: =Pivot!L18 -> 8141 | T18: =S18-R18 -> -73
Q19: =Pivot!J19 -> Product 2 | R19: =Pivot!K19 -> 8174 | S19: =Pivot!L19 -> 8189 | T19: =S19-R19 -> 15
Q20: =Pivot!J20 -> Product 3 | R20: =Pivot!K20 -> 8451 | S20: =Pivot!L20 -> 9106 | T20: 655
Q21: =Pivot!J21 -> Product 4 | R21: =Pivot!K21 -> 14309 | S21: =Pivot!L21 -> 13353 | T21: -956
Q22: =Pivot!J22 -> Product 5 | R22: =Pivot!K22 -> 9491 | S22: =Pivot!L22 -> 8599 | T22: -892
Q23: =Pivot!J23 -> Product 6 | R23: =Pivot!K23 -> 8376 | S23: =Pivot!L23 -> 8332 | T23: -44
Q24: =Pivot!J24 -> Product 7 | R24: =Pivot!K24 -> 8320 | S24: =Pivot!L24 -> 7733 | T24: -587
Q25: =Pivot!J25 -> Product 8 | R25: =Pivot!K25 -> 8584 | S25: =Pivot!L25 -> 8628 | T25: 44
Q26: =Pivot!J26 -> Product 9 | R26: =Pivot!K26 -> 13314 | S26: =Pivot!L26 -> 13712 | T26: 398
Q27: =Pivot!J27 -> Product 10 | R27: =Pivot!K27 -> 9035 | S27: =Pivot!L27 -> 9197 | T27: 162
Q28: =Pivot!J28 -> Product 11 | R28: =Pivot!K28 -> 8076 | S28: =Pivot!L28 -> 8554 | T28: 478
Q29: =Pivot!J29 -> Product 12 | R29: =Pivot!K29 -> 7807 | S29: =Pivot!L29 -> 8434 | T29: 627
Q30: YoY comparison for each Product by Customer
